NUMERO_MANDATO;RIGA_MANDATO;QUIET;IMPORTO_RIGA;IMPORTO_MANDATO;BENEFICIARIO;CIG;TITOLO_PAGAMENTO;DATA_MANDATO;CAPITOLO;ARTICOLO;NUMERO_IMPEGNO;TITOLO;DESCR_TITOLO;LIVELLO_II;DESCR_LIVELLO_II;LIVELLO_III;DESCR_LIVELLO_III;LIVELLO_IV;DESCR_LIVELLO_IV;LIVELLO_V;DESCR_LIVELLO_V;DATA_PAG_EFF
531;1;0;74,85;74,85;COSMAT SRL;Z6B21DD44D;SALDO Fatt.n. 3/PA  del 23/03/2018 CIG Z6B21DD44D;05/04/2018;275;3;74;1;Spese correnti;3;Acquisto di beni e servizi;1;Acquisto di beni;2;Altri beni di consumo;10;Beni per consultazioni elettorali;05/04/2018
532;1;0;1.301,48;1.301,48;PERSONALE DIVERSO (Confr.Allegato); ;LIQUIDAZIONE DI SPESA PER LA CORRESPONSIONE DELL' INDENNITA' DI FUNZIONE ANNO 2018;05/04/2018;14;1;6;1;Spese correnti;3;Acquisto di beni e servizi;2;Acquisto di servizi;1;Organi e incarichi istituzionali dell'amministrazione;1;Organi istituzionali dell'amministrazione - Indennità;05/04/2018
533;1;0;780,9;780,9;PERSONALE DIVERSO (Confr.Allegato); ;LIQUIDAZIONE DI SPESA PER LA CORRESPONSIONE DELL' INDENNITA' DI FUNZIONE ANNO 2018- 1 TRIMESTRE;05/04/2018;14;1;7;1;Spese correnti;3;Acquisto di beni e servizi;2;Acquisto di servizi;1;Organi e incarichi istituzionali dell'amministrazione;1;Organi istituzionali dell'amministrazione - Indennità;05/04/2018
534;1;0;585,66;585,66;PERSONALE DIVERSO (Confr.Allegato);Z431174736;LIQUIDAZIONE DI SPESA PER LA CORRESPONSIONE DELL' INDENNITA' DI FUNZIONE ANNO 2018 -1 TRIM 2018;05/04/2018;14;1;8;1;Spese correnti;3;Acquisto di beni e servizi;2;Acquisto di servizi;1;Organi e incarichi istituzionali dell'amministrazione;1;Organi istituzionali dell'amministrazione - Indennità;05/04/2018
535;1;0;585,66;585,66;PERSONALE DIVERSO (Confr.Allegato);Z431174736;LIQUIDAZIONE DI SPESA PER LA CORRESPONSIONE DELL' INDENNITA' DI FUNZIONE ANNO 2018 -1 TRIM. 2018;05/04/2018;14;1;9;1;Spese correnti;3;Acquisto di beni e servizi;2;Acquisto di servizi;1;Organi e incarichi istituzionali dell'amministrazione;1;Organi istituzionali dell'amministrazione - Indennità;05/04/2018
536;1;0;390,44;390,44;PERSONALE DIVERSO (Confr.Allegato); ;LIQUIDAZIONE DI SPESA PER LA CORRESPONSIONE DELL' INDENNITA' DI FUNZIONE ANNO 2018 - 1 TRIM. 2018;05/04/2018;14;1;10;1;Spese correnti;3;Acquisto di beni e servizi;2;Acquisto di servizi;1;Organi e incarichi istituzionali dell'amministrazione;1;Organi istituzionali dell'amministrazione - Indennità;05/04/2018
542;1;0;189;189;OMESSO NOMINATIVO NEL RISPETTO DELLA NORMATIVA SULLA PROTEZIONE DATI PERSONALI; ;Servizio di Assistenza Domiciliare per anziani e disabili. Liquidazione di spesa in favore di n. 9 beneficiari.  - Settembre -Ottobre 2017.;06/04/2018;1433;3;249;1;Spese correnti;4;Trasferimenti correnti;2;Trasferimenti correnti a Famiglie;2;Interventi assistenziali;999;Altri assegni e sussidi assistenziali;06/04/2018
543;1;0;109,74;109,74;OMESSO NOMINATIVO NEL RISPETTO DELLA NORMATIVA SULLA PROTEZIONE DATI PERSONALI; ;Servizio di Assistenza Domiciliare per anziani e disabili.liquidazione di spesa in favore di n. 9 beneficiari.Settembre- Ottobre - 2017.;06/04/2018;1433;1;366;1;Spese correnti;4;Trasferimenti correnti;2;Trasferimenti correnti a Famiglie;2;Interventi assistenziali;999;Altri assegni e sussidi assistenziali;06/04/2018
544;1;0;50,73;50,73;OMESSO NOMINATIVO NEL RISPETTO DELLA NORMATIVA SULLA PROTEZIONE DATI PERSONALI; ;L. 162/98. Piani personalizzati di sostegno in favore di persone con handicap grave. Marzo - Liquidazione di spesa in favore di n. 46 beneficiari.;06/04/2018;1429;1;65;1;Spese correnti;4;Trasferimenti correnti;2;Trasferimenti correnti a Famiglie;2;Interventi assistenziali;999;Altri assegni e sussidi assistenziali;06/04/2018
545;1;0;49,11;49,11;OMESSO NOMINATIVO NEL RISPETTO DELLA NORMATIVA SULLA PROTEZIONE DATI PERSONALI; ;Servizio di Assistenza Domiciliare per anziani e disabili. liquidazione di spesa. Marzo 2018.;06/04/2018;1433;3;64;1;Spese correnti;4;Trasferimenti correnti;2;Trasferimenti correnti a Famiglie;2;Interventi assistenziali;999;Altri assegni e sussidi assistenziali;06/04/2018
546;1;0;3.000,00;3.000,00;USAI ANDREA; ;Procedura di recupero crediti. Liquidazioni di spesa per versamento fondo spese in favore dell'Avv. Andrea Usai, curatore dell'eredita giacente.;09/04/2018;127;1;155;1;Spese correnti;3;Acquisto di beni e servizi;2;Acquisto di servizi;99;Altri servizi;2;Altre spese legali;09/04/2018
547;1;0;8.588,04;8.588,04;COSMAT SRL;ZE12180C39;SALDO Fatt.n. 4/PA  del 06/04/2018 CIG: ZE12180C39;13/04/2018;3264;1;549;2;Spese in conto capitale;2;Investimenti fissi lordi e acquisto di terreni;1;Beni materiali;9;Beni immobili;12;Infrastrutture stradali;13/04/2018
548;1;0;1.256,07;1.256,07;OMESSO NOMINATIVO NEL RISPETTO DELLA NORMATIVA SULLA PROTEZIONE DATI PERSONALI; ;PROGETTO RITORNARE A CASA - MESE MARZO 2018;13/04/2018;1448;1;969;1;Spese correnti;4;Trasferimenti correnti;2;Trasferimenti correnti a Famiglie;2;Interventi assistenziali;999;Altri assegni e sussidi assistenziali;13/04/2018
549;1;0;214,02;214,02;OMESSO NOMINATIVO NEL RISPETTO DELLA NORMATIVA SULLA PROTEZIONE DATI PERSONALI; ;"Legge regionale n. 4 dell'11/05/2006, art. 17, comma 1. Finanziamento per il programma sperimentale ""Ritornare a casa"".Liquidazione di spesa in favore di un beneficiario. Marzo 2018.";13/04/2018;1448;5;84;1;Spese correnti;4;Trasferimenti correnti;2;Trasferimenti correnti a Famiglie;2;Interventi assistenziali;999;Altri assegni e sussidi assistenziali;13/04/2018
550;1;0;375;375;OMESSO NOMINATIVO NEL RISPETTO DELLA NORMATIVA SULLA PROTEZIONE DATI PERSONALI; ;L. 162/98. Piani personalizzati di sostegno in favore di persone con handicap grave. Proroga gennaio - marzo 2018. liquidazione di spesa in favore di n. 46 beneficiari.;13/04/2018;1429;1;65;1;Spese correnti;4;Trasferimenti correnti;2;Trasferimenti correnti a Famiglie;2;Interventi assistenziali;999;Altri assegni e sussidi assistenziali;13/04/2018
551;1;0;420,15;420,15;OMESSO NOMINATIVO NEL RISPETTO DELLA NORMATIVA SULLA PROTEZIONE DATI PERSONALI; ;L. 162/98. Piani personalizzati di sostegno in favore di persone con handicap grave. Proroga gennaio - Marzo 2018.liquidazione di spesa in favore di n. 46 beneficiari.;13/04/2018;1429;1;65;1;Spese correnti;4;Trasferimenti correnti;2;Trasferimenti correnti a Famiglie;2;Interventi assistenziali;999;Altri assegni e sussidi assistenziali;13/04/2018
552;1;0;375;375;OMESSO NOMINATIVO NEL RISPETTO DELLA NORMATIVA SULLA PROTEZIONE DATI PERSONALI; ;L. 162/98. Piani personalizzati di sostegno in favore di persone con handicap grave. Proroga Gennaio - Marzo 2018.Liquidazione di spesa in favore di n. 46 beneficiari.;13/04/2018;1429;1;65;1;Spese correnti;4;Trasferimenti correnti;2;Trasferimenti correnti a Famiglie;2;Interventi assistenziali;999;Altri assegni e sussidi assistenziali;13/04/2018
553;1;0;162,24;162,24;OMESSO NOMINATIVO NEL RISPETTO DELLA NORMATIVA SULLA PROTEZIONE DATI PERSONALI; ;L. 162/98. Piani personalizzati di sostegno in favore di persone con handicap grave. Proroga Marzo2018. Liquidazione di spesa in favore di n. 46 beneficiari.;13/04/2018;1429;1;65;1;Spese correnti;4;Trasferimenti correnti;2;Trasferimenti correnti a Famiglie;2;Interventi assistenziali;999;Altri assegni e sussidi assistenziali;13/04/2018
554;1;0;227,33;227,33;OMESSO NOMINATIVO NEL RISPETTO DELLA NORMATIVA SULLA PROTEZIONE DATI PERSONALI; ;L. 162/98. Piani personalizzati di sostegno in favore di persone con handicap grave. Marzo-  2018. liquidazione di spesa in favore di n. 46 beneficiari.;13/04/2018;1429;1;65;1;Spese correnti;4;Trasferimenti correnti;2;Trasferimenti correnti a Famiglie;2;Interventi assistenziali;999;Altri assegni e sussidi assistenziali;13/04/2018
555;1;0;830,96;830,96;OMESSO NOMINATIVO NEL RISPETTO DELLA NORMATIVA SULLA PROTEZIONE DATI PERSONALI; ;L. 162/98. Piani personalizzati di sostegno in favore di persone con handicap grave. Proroga Marzo 2018. Liquidazione di spesa in favore di n. 46 beneficiari.;13/04/2018;1429;1;65;1;Spese correnti;4;Trasferimenti correnti;2;Trasferimenti correnti a Famiglie;2;Interventi assistenziali;999;Altri assegni e sussidi assistenziali;13/04/2018
556;1;0;241,45;241,45;OMESSO NOMINATIVO NEL RISPETTO DELLA NORMATIVA SULLA PROTEZIONE DATI PERSONALI; ;L. 162/98. Piani personalizzati di sostegno in favore di persone con handicap grave. MARZO 2018.Liquidazione di spesa in favore di n. 46 beneficiari.;13/04/2018;1429;1;65;1;Spese correnti;4;Trasferimenti correnti;2;Trasferimenti correnti a Famiglie;2;Interventi assistenziali;999;Altri assegni e sussidi assistenziali;13/04/2018
557;1;0;237,38;237,38;OMESSO NOMINATIVO NEL RISPETTO DELLA NORMATIVA SULLA PROTEZIONE DATI PERSONALI; ;L. 162/98. Piani personalizzati di sostegno in favore di persone con handicap grave. Mese - Marzo 2018. Liquidzione di spesa in favore di n. 46 beneficiari.;13/04/2018;1429;1;65;1;Spese correnti;4;Trasferimenti correnti;2;Trasferimenti correnti a Famiglie;2;Interventi assistenziali;999;Altri assegni e sussidi assistenziali;13/04/2018
558;1;0;207,92;207,92;OMESSO NOMINATIVO NEL RISPETTO DELLA NORMATIVA SULLA PROTEZIONE DATI PERSONALI; ;L. 162/98. Piani personalizzati di sostegno in favore di persone con handicap grave. Mese - Marzo 2018. liquidazione di spesa in favore di n. 46 beneficiari.;13/04/2018;1429;1;65;1;Spese correnti;4;Trasferimenti correnti;2;Trasferimenti correnti a Famiglie;2;Interventi assistenziali;999;Altri assegni e sussidi assistenziali;13/04/2018
559;1;0;1.325,99;1.325,99;OMESSO NOMINATIVO NEL RISPETTO DELLA NORMATIVA SULLA PROTEZIONE DATI PERSONALI; ;L. 162/98. Piani personalizzati di sostegno in favore di persone con handicap grave. mese  - Marzo 2018.liquidazione di spesa in favore di n. 46 beneficiari.;13/04/2018;1429;1;65;1;Spese correnti;4;Trasferimenti correnti;2;Trasferimenti correnti a Famiglie;2;Interventi assistenziali;999;Altri assegni e sussidi assistenziali;13/04/2018
560;1;0;1.181,45;1.181,45;OMESSO NOMINATIVO NEL RISPETTO DELLA NORMATIVA SULLA PROTEZIONE DATI PERSONALI; ;L. 162/98. Piani personalizzati di sostegno in favore di persone con handicap grave. Marzo 2018. liquidazione di spesa in favore di n. 46 beneficiari.;13/04/2018;1429;1;65;1;Spese correnti;4;Trasferimenti correnti;2;Trasferimenti correnti a Famiglie;2;Interventi assistenziali;999;Altri assegni e sussidi assistenziali;13/04/2018
561;1;0;241,63;241,63;OMESSO NOMINATIVO NEL RISPETTO DELLA NORMATIVA SULLA PROTEZIONE DATI PERSONALI; ;L. 162/98. Piani personalizzati di sostegno in favore di persone con handicap grave. Mese - Marzo 2018. Liquidazione di spesa in favore di n. 46 beneficiari.;13/04/2018;1429;1;65;1;Spese correnti;4;Trasferimenti correnti;2;Trasferimenti correnti a Famiglie;2;Interventi assistenziali;999;Altri assegni e sussidi assistenziali;13/04/2018
562;1;0;225,82;225,82;OMESSO NOMINATIVO NEL RISPETTO DELLA NORMATIVA SULLA PROTEZIONE DATI PERSONALI; ;L. 162/98. Piani personalizzati di sostegno in favore di persone con handicap grave.  Marzo 2018. liquidazione di spesa in favore di n. 46 beneficiari.;13/04/2018;1429;1;65;1;Spese correnti;4;Trasferimenti correnti;2;Trasferimenti correnti a Famiglie;2;Interventi assistenziali;999;Altri assegni e sussidi assistenziali;13/04/2018
563;1;0;935;935;OMESSO NOMINATIVO NEL RISPETTO DELLA NORMATIVA SULLA PROTEZIONE DATI PERSONALI; ;L. 162/98. Piani personalizzati di sostegno in favore di persone con handicap grave. Proroga Marzo 2018.liquidazione di spesa in favore di n. 46 beneficiari.;13/04/2018;1429;1;65;1;Spese correnti;4;Trasferimenti correnti;2;Trasferimenti correnti a Famiglie;2;Interventi assistenziali;999;Altri assegni e sussidi assistenziali;13/04/2018
564;1;0;250;250;OMESSO NOMINATIVO NEL RISPETTO DELLA NORMATIVA SULLA PROTEZIONE DATI PERSONALI; ;L. 162/98. Piani personalizzati di sostegno in favore di persone con handicap grave.  - Marzo 2018. liquidazione  di spesa in favore di n. 46 beneficiari.;13/04/2018;1429;1;65;1;Spese correnti;4;Trasferimenti correnti;2;Trasferimenti correnti a Famiglie;2;Interventi assistenziali;999;Altri assegni e sussidi assistenziali;13/04/2018
565;1;0;201,08;201,08;OMESSO NOMINATIVO NEL RISPETTO DELLA NORMATIVA SULLA PROTEZIONE DATI PERSONALI; ;L. 162/98. Piani personalizzati di sostegno in favore di persone con handicap grave. Marzo 2018.liquidazione  di spesa in favore di n. 46 beneficiari.;13/04/2018;1429;1;65;1;Spese correnti;4;Trasferimenti correnti;2;Trasferimenti correnti a Famiglie;2;Interventi assistenziali;999;Altri assegni e sussidi assistenziali;13/04/2018
566;1;0;485,08;485,08;OMESSO NOMINATIVO NEL RISPETTO DELLA NORMATIVA SULLA PROTEZIONE DATI PERSONALI; ;L. 162/98. Piani personalizzati di sostegno in favore di persone con handicap grave. Marzo 2018. Liquidazione di spesa in favore di n. 46 beneficiari.;13/04/2018;1429;1;65;1;Spese correnti;4;Trasferimenti correnti;2;Trasferimenti correnti a Famiglie;2;Interventi assistenziali;999;Altri assegni e sussidi assistenziali;13/04/2018
567;1;0;156,66;156,66;OMESSO NOMINATIVO NEL RISPETTO DELLA NORMATIVA SULLA PROTEZIONE DATI PERSONALI; ;L. 162/98. Piani personalizzati di sostegno in favore di persone con handicap grave.Marzo 2018.Liquidazione di spesa in favore di n. 46 beneficiari.;13/04/2018;1429;1;65;1;Spese correnti;4;Trasferimenti correnti;2;Trasferimenti correnti a Famiglie;2;Interventi assistenziali;999;Altri assegni e sussidi assistenziali;13/04/2018
568;1;0;336;336;OMESSO NOMINATIVO NEL RISPETTO DELLA NORMATIVA SULLA PROTEZIONE DATI PERSONALI; ;L. 162/98. Piani personalizzati di sostegno in favore di persone con handicap grave. marzo  2018.liquidazione di spesa in favore di n. 46 beneficiari.;13/04/2018;1429;1;65;1;Spese correnti;4;Trasferimenti correnti;2;Trasferimenti correnti a Famiglie;2;Interventi assistenziali;999;Altri assegni e sussidi assistenziali;13/04/2018
569;1;0;1.087,99;1.087,99;OMESSO NOMINATIVO NEL RISPETTO DELLA NORMATIVA SULLA PROTEZIONE DATI PERSONALI; ;L. 162/98. Piani personalizzati di sostegno in favore di persone con handicap grave.Marzo 2018. LIQUIDAZIONEdi spesa in favore di n. 46 beneficiari.;13/04/2018;1429;1;65;1;Spese correnti;4;Trasferimenti correnti;2;Trasferimenti correnti a Famiglie;2;Interventi assistenziali;999;Altri assegni e sussidi assistenziali;13/04/2018
570;1;0;164,13;164,13;OMESSO NOMINATIVO NEL RISPETTO DELLA NORMATIVA SULLA PROTEZIONE DATI PERSONALI; ;L. 162/98. Piani personalizzati di sostegno in favore di persone con handicap grave.Marzo  2018. Liquidazione di spesa in favore di n. 46 beneficiari.;13/04/2018;1429;1;65;1;Spese correnti;4;Trasferimenti correnti;2;Trasferimenti correnti a Famiglie;2;Interventi assistenziali;999;Altri assegni e sussidi assistenziali;13/04/2018
571;1;0;1.258,18;1.258,18;OMESSO NOMINATIVO NEL RISPETTO DELLA NORMATIVA SULLA PROTEZIONE DATI PERSONALI; ;L. 162/98. Piani personalizzati di sostegno in favore di persone con handicap grave. MESE MARZO 2018.Liquidazione di spesa in favore di n. 46 beneficiari.;13/04/2018;1429;1;65;1;Spese correnti;4;Trasferimenti correnti;2;Trasferimenti correnti a Famiglie;2;Interventi assistenziali;999;Altri assegni e sussidi assistenziali;13/04/2018
572;1;0;327,8;327,8;OMESSO NOMINATIVO NEL RISPETTO DELLA NORMATIVA SULLA PROTEZIONE DATI PERSONALI; ;L. 162/98. Piani personalizzati di sostegno in favore di persone con handicap grave. mese marzo 2018. Liquidazione di spesa in favore di n. 46 beneficiari.;13/04/2018;1429;1;65;1;Spese correnti;4;Trasferimenti correnti;2;Trasferimenti correnti a Famiglie;2;Interventi assistenziali;999;Altri assegni e sussidi assistenziali;13/04/2018
573;1;0;185,83;185,83;OMESSO NOMINATIVO NEL RISPETTO DELLA NORMATIVA SULLA PROTEZIONE DATI PERSONALI; ;L. 162/98. Piani personalizzati di sostegno in favore di persone con handicap grave. mese marzo 2018. liquidazione di spesa in favore di n. 46 beneficiari.;13/04/2018;1429;1;65;1;Spese correnti;4;Trasferimenti correnti;2;Trasferimenti correnti a Famiglie;2;Interventi assistenziali;999;Altri assegni e sussidi assistenziali;13/04/2018
575;1;0;1.146,66;1.146,66;OMESSO NOMINATIVO NEL RISPETTO DELLA NORMATIVA SULLA PROTEZIONE DATI PERSONALI; ;L. 162/98. Piani personalizzati di sostegno in favore di persone con handicap grave. Mese marzo 2018. liquidazione di spesa in favore di n. 46 beneficiari.;13/04/2018;1429;1;65;1;Spese correnti;4;Trasferimenti correnti;2;Trasferimenti correnti a Famiglie;2;Interventi assistenziali;999;Altri assegni e sussidi assistenziali;13/04/2018
610;1;0;77,21;77,21;TELECOM ITALIA S.P.A-TIM S.P.A.Direz e coordin.Vivendi;Z1713E63AA;SALDO Fatt.n. 8R00018668  del 06/02/2018 2BIM 2018;17/04/2018;618;3;427;1;Spese correnti;3;Acquisto di beni e servizi;2;Acquisto di servizi;5;Utenze e canoni;1;Telefonia fissa;17/04/2018
611;1;0;102,39;102,39;TELECOM ITALIA S.P.A-TIM S.P.A.Direz e coordin.Vivendi;Z1713E63AA;ACCONTO Fatt.n. 8R00019054  del 06/02/2018 2BIM 2018;17/04/2018;618;3;427;1;Spese correnti;3;Acquisto di beni e servizi;2;Acquisto di servizi;5;Utenze e canoni;1;Telefonia fissa;17/04/2018
612;1;0;44,27;44,27;TELECOM ITALIA S.P.A-TIM S.P.A.Direz e coordin.Vivendi;Z1713E63AA;ACCONTO Fatt.n. 8R00019023  del 06/02/2018 2BIM 2018;17/04/2018;592;3;429;1;Spese correnti;3;Acquisto di beni e servizi;2;Acquisto di servizi;5;Utenze e canoni;1;Telefonia fissa;17/04/2018
613;1;0;116,68;116,68;TELECOM ITALIA S.P.A-TIM S.P.A.Direz e coordin.Vivendi;Z1713E63AA;SALDO Fatt.n. 8R00019023  del 06/02/2018 2BIM 2018;17/04/2018;592;3;429;1;Spese correnti;3;Acquisto di beni e servizi;2;Acquisto di servizi;5;Utenze e canoni;1;Telefonia fissa;17/04/2018
614;1;0;112,84;112,84;TELECOM ITALIA S.P.A-TIM S.P.A.Direz e coordin.Vivendi;Z1713E63AA;ACCONTO Fatt.n. 8R00018441  del 06/02/2018 2BIM 2018;17/04/2018;118;3;430;1;Spese correnti;3;Acquisto di beni e servizi;2;Acquisto di servizi;5;Utenze e canoni;1;Telefonia fissa;17/04/2018
615;1;0;90,28;99;TELECOM ITALIA S.P.A-TIM S.P.A.Direz e coordin.Vivendi;Z1713E63AA;SALDO Fatt.n. 8R00018272  del 06/02/2018 2BIM 2018;17/04/2018;118;3;430;1;Spese correnti;3;Acquisto di beni e servizi;2;Acquisto di servizi;5;Utenze e canoni;1;Telefonia fissa;17/04/2018
615;2;0;8,72;99;TELECOM ITALIA S.P.A-TIM S.P.A.Direz e coordin.Vivendi;Z1713E63AA;SALDO Fatt.n. 8R00018441  del 06/02/2018 2BIM 2018;17/04/2018;118;3;430;1;Spese correnti;3;Acquisto di beni e servizi;2;Acquisto di servizi;5;Utenze e canoni;1;Telefonia fissa;17/04/2018
616;1;0;80,29;80,29;TELECOM ITALIA S.P.A-TIM S.P.A.Direz e coordin.Vivendi;Z1713E63AA;ACCONTO Fatt.n. 8R00018438  del 06/02/2018 2BIM 2018;17/04/2018;716;3;428;1;Spese correnti;3;Acquisto di beni e servizi;2;Acquisto di servizi;5;Utenze e canoni;1;Telefonia fissa;17/04/2018
617;1;0;44,46;44,46;TELECOM ITALIA S.P.A-TIM S.P.A.Direz e coordin.Vivendi;Z1713E63AA;SALDO Fatt.n. 8R00018438  del 06/02/2018 2BIM 2018;17/04/2018;716;3;428;1;Spese correnti;3;Acquisto di beni e servizi;2;Acquisto di servizi;5;Utenze e canoni;1;Telefonia fissa;17/04/2018
618;1;0;30,42;30,42;TELECOM ITALIA S.P.A-TIM S.P.A.Direz e coordin.Vivendi;Z1713E63AA;ACCONTO Fatt.n. 8R00018182  del 06/02/2018 2BIM 2018;17/04/2018;1340;4;434;1;Spese correnti;3;Acquisto di beni e servizi;2;Acquisto di servizi;5;Utenze e canoni;1;Telefonia fissa;17/04/2018
619;1;0;4,96;4,96;TELECOM ITALIA S.P.A-TIM S.P.A.Direz e coordin.Vivendi;Z1713E63AA;SALDO Fatt.n. 8R00018182  del 06/02/2018 2BIM 2018;17/04/2018;1340;4;434;1;Spese correnti;3;Acquisto di beni e servizi;2;Acquisto di servizi;5;Utenze e canoni;1;Telefonia fissa;17/04/2018
620;1;0;0,07;0,07;TELECOM ITALIA S.P.A-TIM S.P.A.Direz e coordin.Vivendi;Z1713E63AA;SALDO Fatt.n. 8R00019054  del 06/02/2018 2BIM 2018;17/04/2018;618;3;427;1;Spese correnti;3;Acquisto di beni e servizi;2;Acquisto di servizi;5;Utenze e canoni;1;Telefonia fissa;17/04/2018
621;1;0;402,6;402,6;GRAFICHE E GASPARI SRL;ZCB224A009;SALDO Fatt.n. 06294  del 30/03/2018;19/04/2018;274;7;105;1;Spese correnti;3;Acquisto di beni e servizi;1;Acquisto di beni;2;Altri beni di consumo;14;Stampati specialistici;19/04/2018
622;1;0;70,21;70,21;POSTE ITALIANE spa;Z4A1F1447A;SALDO Fatt.n. 8718110844  del 09/04/2018 Fattura Elettronica relativa all'Identificativo Rendiconto 2096612303;19/04/2018;118;7;228;1;Spese correnti;3;Acquisto di beni e servizi;2;Acquisto di servizi;16;Servizi amministrativi;2;Spese postali;19/04/2018
623;1;0;4.727,55;4.727,55;ORRU' AGOSTINO;ZC3151CDF0;SALDO Fatt.n. 2018/E/02  del 18/04/2018 SALDO FATTURA;19/04/2018;34;1;378;1;Spese correnti;3;Acquisto di beni e servizi;2;Acquisto di servizi;1;Organi e incarichi istituzionali dell'amministrazione;8;Compensi agli organi istituzionali di revisione, di controllo ed altri incarichi istituzionali dell'amministrazione;19/04/2018
624;1;0;4.727,55;4.727,55;ORRU' AGOSTINO;ZC3151CDF0;SALDO Fatt.n. 2018/E/03  del 18/04/2018 SALDO FATTURA;19/04/2018;34;1;378;1;Spese correnti;3;Acquisto di beni e servizi;2;Acquisto di servizi;1;Organi e incarichi istituzionali dell'amministrazione;8;Compensi agli organi istituzionali di revisione, di controllo ed altri incarichi istituzionali dell'amministrazione;19/04/2018
625;1;0;2.170,72;2.170,72;ASARP CASAMATTA ONLUS;Z1E21E1ABB;SALDO Fatt.n. FATTPA 10_18  del 13/04/2018 CIG Z1E21E1ABB IMP. N. 19 DEL 25/01/2018 MARZO 2018 INSERIMENTO STRUTTURA COMUNITA' INTEGRATA UTENTE M.F.;20/04/2018;1418;1;82;1;Spese correnti;3;Acquisto di beni e servizi;2;Acquisto di servizi;99;Altri servizi;999;Altri servizi diversi n.a.c.;20/04/2018
626;1;0;200;200;OMESSO NOMINATIVO NEL RISPETTO DELLA NORMATIVA SULLA PROTEZIONE DATI PERSONALI; ;"Legge Regionale 2 agosto 2016, n 18. Fondo regionale per il reddito di inclusione sociale (REIS) ""Aggiudu torrau"". Annualita 2017. LIQUIDAZIONE di spesa.";26/04/2018;1440;3;526;1;Spese correnti;4;Trasferimenti correnti;2;Trasferimenti correnti a Famiglie;2;Interventi assistenziali;999;Altri assegni e sussidi assistenziali;26/04/2018
627;1;0;120;120;OMESSO NOMINATIVO NEL RISPETTO DELLA NORMATIVA SULLA PROTEZIONE DATI PERSONALI; ;"Legge Regionale 2 agosto 2016, n 18. Fondo regionale per il reddito di inclusione sociale (REIS) ""Aggiudu torrau"". Annualita 2017. LIQUIDAZIONE di spesa.";26/04/2018;1440;3;526;1;Spese correnti;4;Trasferimenti correnti;2;Trasferimenti correnti a Famiglie;2;Interventi assistenziali;999;Altri assegni e sussidi assistenziali;26/04/2018
628;1;0;120;120;OMESSO NOMINATIVO NEL RISPETTO DELLA NORMATIVA SULLA PROTEZIONE DATI PERSONALI; ;"Legge Regionale 2 agosto 2016, n 18. Fondo regionale per il reddito di inclusione sociale (REIS) ""Aggiudu torrau"". Annualita 2017. LIQUIDAZIONE di spesa.";26/04/2018;1440;3;526;1;Spese correnti;4;Trasferimenti correnti;2;Trasferimenti correnti a Famiglie;2;Interventi assistenziali;999;Altri assegni e sussidi assistenziali;26/04/2018
629;1;0;320;320;OMESSO NOMINATIVO NEL RISPETTO DELLA NORMATIVA SULLA PROTEZIONE DATI PERSONALI; ;"Legge Regionale 2 agosto 2016, n 18. Fondo regionale per il reddito di inclusione sociale (REIS) ""Aggiudu torrau"". Annualita 2017. LIQUIDAZIONE di spesa.";26/04/2018;1440;3;526;1;Spese correnti;4;Trasferimenti correnti;2;Trasferimenti correnti a Famiglie;2;Interventi assistenziali;999;Altri assegni e sussidi assistenziali;26/04/2018
630;1;0;320;320;OMESSO NOMINATIVO NEL RISPETTO DELLA NORMATIVA SULLA PROTEZIONE DATI PERSONALI; ;"Legge Regionale 2 agosto 2016, n 18. Fondo regionale per il reddito di inclusione sociale (REIS) ""Aggiudu torrau"". Annualita 2017. LIQUIDAZIONE di spesa.";26/04/2018;1440;3;526;1;Spese correnti;4;Trasferimenti correnti;2;Trasferimenti correnti a Famiglie;2;Interventi assistenziali;999;Altri assegni e sussidi assistenziali;26/04/2018
631;1;0;200;200;OMESSO NOMINATIVO NEL RISPETTO DELLA NORMATIVA SULLA PROTEZIONE DATI PERSONALI; ;"Legge Regionale 2 agosto 2016, n 18. Fondo regionale per il reddito di inclusione sociale (REIS) ""Aggiudu torrau"". Annualita 2017. Liquidazione di spesa.";26/04/2018;1440;3;526;1;Spese correnti;4;Trasferimenti correnti;2;Trasferimenti correnti a Famiglie;2;Interventi assistenziali;999;Altri assegni e sussidi assistenziali;26/04/2018
632;1;0;120;120;OMESSO NOMINATIVO NEL RISPETTO DELLA NORMATIVA SULLA PROTEZIONE DATI PERSONALI; ;"Legge Regionale 2 agosto 2016, n 18. Fondo regionale per il reddito di inclusione sociale (REIS) ""Aggiudu torrau"". Annualita 2017. liquidazione di spesa.";26/04/2018;1440;3;526;1;Spese correnti;4;Trasferimenti correnti;2;Trasferimenti correnti a Famiglie;2;Interventi assistenziali;999;Altri assegni e sussidi assistenziali;26/04/2018
633;1;0;200;200;OMESSO NOMINATIVO NEL RISPETTO DELLA NORMATIVA SULLA PROTEZIONE DATI PERSONALI; ;"Legge Regionale 2 agosto 2016, n 18. Fondo regionale per il reddito di inclusione sociale (REIS) ""Aggiudu torrau"". Annualita 2017. liquidazione di spesa.";26/04/2018;1440;3;526;1;Spese correnti;4;Trasferimenti correnti;2;Trasferimenti correnti a Famiglie;2;Interventi assistenziali;999;Altri assegni e sussidi assistenziali;26/04/2018
634;1;0;1.000,00;1.000,00;OMESSO NOMINATIVO NEL RISPETTO DELLA NORMATIVA SULLA PROTEZIONE DATI PERSONALI; ;"Legge Regionale 2 agosto 2016, n 18. Fondo regionale per il reddito di inclusione sociale (REIS) ""Aggiudu torrau"". Annualita 2017. liquidazione di spesa.";26/04/2018;1440;3;526;1;Spese correnti;4;Trasferimenti correnti;2;Trasferimenti correnti a Famiglie;2;Interventi assistenziali;999;Altri assegni e sussidi assistenziali;26/04/2018
635;1;0;400;400;OMESSO NOMINATIVO NEL RISPETTO DELLA NORMATIVA SULLA PROTEZIONE DATI PERSONALI; ;"Legge Regionale 2 agosto 2016, n 18. Fondo regionale per il reddito di inclusione sociale (REIS) ""Aggiudu torrau"". Annualita 2017. Liquidazione di spesa.";26/04/2018;1440;3;526;1;Spese correnti;4;Trasferimenti correnti;2;Trasferimenti correnti a Famiglie;2;Interventi assistenziali;999;Altri assegni e sussidi assistenziali;26/04/2018
636;1;0;600;600;OMESSO NOMINATIVO NEL RISPETTO DELLA NORMATIVA SULLA PROTEZIONE DATI PERSONALI; ;"Legge Regionale 2 agosto 2016, n 18. Fondo regionale per il reddito di inclusione sociale (REIS) ""Aggiudu torrau"". Annualita 2017. LIQUIDAZIONE  di spesa.";26/04/2018;1440;3;526;1;Spese correnti;4;Trasferimenti correnti;2;Trasferimenti correnti a Famiglie;2;Interventi assistenziali;999;Altri assegni e sussidi assistenziali;26/04/2018
637;1;0;400;400;OMESSO NOMINATIVO NEL RISPETTO DELLA NORMATIVA SULLA PROTEZIONE DATI PERSONALI; ;"Legge Regionale 2 agosto 2016, n 18. Fondo regionale per il reddito di inclusione sociale (REIS) ""Aggiudu torrau"". Annualita 2017.LIQUIDAZIONE di spesa.";26/04/2018;1440;3;526;1;Spese correnti;4;Trasferimenti correnti;2;Trasferimenti correnti a Famiglie;2;Interventi assistenziali;999;Altri assegni e sussidi assistenziali;26/04/2018
638;1;0;400;400;OMESSO NOMINATIVO NEL RISPETTO DELLA NORMATIVA SULLA PROTEZIONE DATI PERSONALI; ;"Legge Regionale 2 agosto 2016, n 18. Fondo regionale per il reddito di inclusione sociale (REIS) ""Aggiudu torrau"". Annualita 2017. LIQUIDAZIONE di spesa.";26/04/2018;1440;3;526;1;Spese correnti;4;Trasferimenti correnti;2;Trasferimenti correnti a Famiglie;2;Interventi assistenziali;999;Altri assegni e sussidi assistenziali;26/04/2018
639;1;0;400;400;OMESSO NOMINATIVO NEL RISPETTO DELLA NORMATIVA SULLA PROTEZIONE DATI PERSONALI; ;"Legge Regionale 2 agosto 2016, n 18. Fondo regionale per il reddito di inclusione sociale (REIS) ""Aggiudu torrau"". Annualita 2017.LIQUIDAZIONE di spesa.";26/04/2018;1440;3;526;1;Spese correnti;4;Trasferimenti correnti;2;Trasferimenti correnti a Famiglie;2;Interventi assistenziali;999;Altri assegni e sussidi assistenziali;26/04/2018
640;1;0;1.000,00;1.000,00;OMESSO NOMINATIVO NEL RISPETTO DELLA NORMATIVA SULLA PROTEZIONE DATI PERSONALI; ;"Legge Regionale 2 agosto 2016, n 18. Fondo regionale per il reddito di inclusione sociale (REIS) ""Aggiudu torrau"". Annualita 2017. LIQUIDAZIONE di spesa.";26/04/2018;1440;3;526;1;Spese correnti;4;Trasferimenti correnti;2;Trasferimenti correnti a Famiglie;2;Interventi assistenziali;999;Altri assegni e sussidi assistenziali;26/04/2018
641;1;0;1.000,00;1.000,00;OMESSO NOMINATIVO NEL RISPETTO DELLA NORMATIVA SULLA PROTEZIONE DATI PERSONALI; ;"Legge Regionale 2 agosto 2016, n 18. Fondo regionale per il reddito di inclusione sociale (REIS) ""Aggiudu torrau"". Annualita 2017. LIQUIDAZIONE di spesa.";26/04/2018;1440;3;526;1;Spese correnti;4;Trasferimenti correnti;2;Trasferimenti correnti a Famiglie;2;Interventi assistenziali;999;Altri assegni e sussidi assistenziali;26/04/2018
642;1;0;800;800;OMESSO NOMINATIVO NEL RISPETTO DELLA NORMATIVA SULLA PROTEZIONE DATI PERSONALI; ;"Legge Regionale 2 agosto 2016, n 18. Fondo regionale per il reddito di inclusione sociale (REIS) ""Aggiudu torrau"". Annualita 2017. LIQUIDAZIONE di spesa.";26/04/2018;1440;3;526;1;Spese correnti;4;Trasferimenti correnti;2;Trasferimenti correnti a Famiglie;2;Interventi assistenziali;999;Altri assegni e sussidi assistenziali;26/04/2018
643;1;0;83,46;83,46;OMESSO NOMINATIVO NEL RISPETTO DELLA NORMATIVA SULLA PROTEZIONE DATI PERSONALI; ;Servizio di Assistenza Domiciliare per anziani e disabili. LIQUIDAZIONE di spesa. Marzo 2018.;26/04/2018;1433;3;64;1;Spese correnti;4;Trasferimenti correnti;2;Trasferimenti correnti a Famiglie;2;Interventi assistenziali;999;Altri assegni e sussidi assistenziali;26/04/2018
644;1;0;675,3;675,3;OMESSO NOMINATIVO NEL RISPETTO DELLA NORMATIVA SULLA PROTEZIONE DATI PERSONALI; ;Servizio di Assistenza Domiciliare per anziani e disabili. LIQUIDAZIONE di spesa. Febbraio -Marzo 2018.;26/04/2018;1433;3;64;1;Spese correnti;4;Trasferimenti correnti;2;Trasferimenti correnti a Famiglie;2;Interventi assistenziali;999;Altri assegni e sussidi assistenziali;26/04/2018
645;1;0;68,36;296,95;KUWAIT PETROLEUM ITALIA SPA;Z621D28DB4;SALDO Fatt.n. PJ00118984  del 31/03/2018;26/04/2018;208;8;508;1;Spese correnti;3;Acquisto di beni e servizi;1;Acquisto di beni;2;Altri beni di consumo;2;Carburanti, combustibili e lubrificanti;26/04/2018
645;2;0;228,59;296,95;KUWAIT PETROLEUM ITALIA SPA;Z621D28DB4;ACCONTO Fatt.n. PJ00118984  del 31/03/2018;26/04/2018;208;8;508;1;Spese correnti;3;Acquisto di beni e servizi;1;Acquisto di beni;2;Altri beni di consumo;2;Carburanti, combustibili e lubrificanti;26/04/2018
646;1;0;909,99;909,99;AS.TR.E.D. COOP. SOCIALE;Z8321734AD;ACCONTO Fatt.n. 05PU_PA2018  del 05/04/2018 CIG Z8321734AD;26/04/2018;230;1;546;1;Spese correnti;3;Acquisto di beni e servizi;2;Acquisto di servizi;13;Servizi ausiliari per il funzionamento dell'ente;2;Servizi di pulizia e lavanderia;26/04/2018
647;1;0;2.060,01;2.060,01;AS.TR.E.D. COOP. SOCIALE;Z8321734AD;SALDO Fatt.n. 05PU_PA2018  del 05/04/2018 CIG Z8321734AD;26/04/2018;1302;1;547;1;Spese correnti;3;Acquisto di beni e servizi;2;Acquisto di servizi;9;Manutenzione ordinaria e riparazioni;8;Manutenzione ordinaria e riparazioni di beni immobili;26/04/2018
648;1;0;402,6;402,6;ITM TELEMATICA SRL;ZB11AA2094;SALDO Fatt.n. 177 PA  del 26/03/2018 ORDINE N.3064427 DEL 18/07/16 CIG ZB11AA2094 BUONO N.25/2018/SS COMUNE DI SANT'ANDREA FRIUS;26/04/2018;118;3;317;1;Spese correnti;3;Acquisto di beni e servizi;2;Acquisto di servizi;5;Utenze e canoni;999;Utenze e canoni per altri servizi n.a.c.;26/04/2018
655;1;0;48,6;113,96;TELECOM ITALIA S.P.A-TIM S.P.A.Direz e coordin.Vivendi;Z8913E8555;SALDO Fatt.n. 6820180420000909  del 11/04/2018 CONTO TIM 6 2017  AGOSTO - SETTEMBRE CONTRATTO N.: 888010715946 OFFERTA: SOLUZIONE MOBILE TIM;04/05/2018;42;4;97;1;Spese correnti;3;Acquisto di beni e servizi;2;Acquisto di servizi;5;Utenze e canoni;2;Telefonia mobile;04/05/2018
655;2;0;65,36;113,96;TELECOM ITALIA S.P.A-TIM S.P.A.Direz e coordin.Vivendi;Z8913E8555;SALDO Fatt.n. 7X01807830  del 16/04/2018 3BIM 2018;04/05/2018;42;4;97;1;Spese correnti;3;Acquisto di beni e servizi;2;Acquisto di servizi;5;Utenze e canoni;2;Telefonia mobile;04/05/2018
656;1;0;81,45;190,01;TELECOM ITALIA S.P.A-TIM S.P.A.Direz e coordin.Vivendi;Z1713E63AA;SALDO Fatt.n. 8R00061934  del 06/04/2018 3BIM 2018;04/05/2018;618;3;427;1;Spese correnti;3;Acquisto di beni e servizi;2;Acquisto di servizi;5;Utenze e canoni;1;Telefonia fissa;04/05/2018
656;2;0;108,56;190,01;TELECOM ITALIA S.P.A-TIM S.P.A.Direz e coordin.Vivendi;Z1713E63AA;SALDO Fatt.n. 8R00061481  del 06/04/2018 3BIM 2018;04/05/2018;618;3;427;1;Spese correnti;3;Acquisto di beni e servizi;2;Acquisto di servizi;5;Utenze e canoni;1;Telefonia fissa;04/05/2018
657;1;0;167,54;167,54;TELECOM ITALIA S.P.A-TIM S.P.A.Direz e coordin.Vivendi;Z1713E63AA;SALDO Fatt.n. 8R00062631  del 06/04/2018 3BIM 2018;04/05/2018;592;3;429;1;Spese correnti;3;Acquisto di beni e servizi;2;Acquisto di servizi;5;Utenze e canoni;1;Telefonia fissa;04/05/2018
658;1;0;129,59;225,97;TELECOM ITALIA S.P.A-TIM S.P.A.Direz e coordin.Vivendi;Z1713E63AA;SALDO Fatt.n. 8R00062688  del 06/04/2018 3BIM 2018;04/05/2018;118;3;430;1;Spese correnti;3;Acquisto di beni e servizi;2;Acquisto di servizi;5;Utenze e canoni;1;Telefonia fissa;04/05/2018
658;2;0;96,38;225,97;TELECOM ITALIA S.P.A-TIM S.P.A.Direz e coordin.Vivendi;Z1713E63AA;SALDO Fatt.n. 8R00062702  del 06/04/2018 3BIM 2018;04/05/2018;118;3;430;1;Spese correnti;3;Acquisto di beni e servizi;2;Acquisto di servizi;5;Utenze e canoni;1;Telefonia fissa;04/05/2018
659;1;0;144,61;144,61;TELECOM ITALIA S.P.A-TIM S.P.A.Direz e coordin.Vivendi;Z1713E63AA;SALDO Fatt.n. 8R00062580  del 06/04/2018 3BIM 2018;04/05/2018;716;3;428;1;Spese correnti;3;Acquisto di beni e servizi;2;Acquisto di servizi;5;Utenze e canoni;1;Telefonia fissa;04/05/2018
660;1;0;35,38;102,48;TELECOM ITALIA S.P.A-TIM S.P.A.Direz e coordin.Vivendi;Z1713E63AA;SALDO Fatt.n. 8R00062366  del 06/04/2018 3BIM 2018;04/05/2018;1340;4;434;1;Spese correnti;3;Acquisto di beni e servizi;2;Acquisto di servizi;5;Utenze e canoni;1;Telefonia fissa;04/05/2018
660;2;0;67,1;102,48;TELECOM ITALIA S.P.A-TIM S.P.A.Direz e coordin.Vivendi;Z1713E63AA;SALDO Fatt.n. 8R00061760  del 06/04/2018 3BIM 2018;04/05/2018;1340;4;434;1;Spese correnti;3;Acquisto di beni e servizi;2;Acquisto di servizi;5;Utenze e canoni;1;Telefonia fissa;04/05/2018
661;1;0;7.350,00;7.350,00;ASSOCIAZIONE FOCUS EUROPE; ;"Progetto Focus Europe ""I Giovani della Consulta di Sant'Andrea Frius e l'Europa"" - Organizzazione del viaggio e soggiorno nella citta di Bruxelles. Impegno di spesa e liquidazione acconto del 75%.";04/05/2018;760;3;175;1;Spese correnti;4;Trasferimenti correnti;4;Trasferimenti correnti a Istituzioni Sociali Private;1;Trasferimenti correnti a Istituzioni Sociali Private;1;Trasferimenti correnti a Istituzioni Sociali Private;04/05/2018
668;1;0;2.000,00;2.000,00;ASSOCIAZIONE FOCUS EUROPE; ;"LIQUIDAZIONE DI SPESA PER QUOTA ASSOCIATIVA ALL' ASSOCIAZIONE ""FOCUS EUROPE LABORATORIO PROGETTUALE PER L' INTEGRAZIONE  EUROPEA"". ANNO 2018 -";07/05/2018;134;1;174;1;Spese correnti;3;Acquisto di beni e servizi;2;Acquisto di servizi;99;Altri servizi;3;Quote di associazioni;07/05/2018
669;1;0;1.499,99;1.499,99;HALLEY SARDEGNA SRL;ZE021BD894;SALDO Fatt.n. 0000430  del 11/04/2018;10/05/2018;20;1;107;1;Spese correnti;3;Acquisto di beni e servizi;2;Acquisto di servizi;19;Servizi informatici e di telecomunicazioni;11;Processi trasversali alle classi di servizio;10/05/2018
670;1;0;1.030,01;1.030,01;AS.TR.E.D. COOP. SOCIALE;Z8321734AD;ACCONTO Fatt.n. 8PU_PA2018  del 02/05/2018 CIG Z8321734AD;10/05/2018;1493;1;548;1;Spese correnti;3;Acquisto di beni e servizi;2;Acquisto di servizi;9;Manutenzione ordinaria e riparazioni;8;Manutenzione ordinaria e riparazioni di beni immobili;10/05/2018
671;1;0;1.939,99;1.939,99;AS.TR.E.D. COOP. SOCIALE;Z8321734AD;SALDO Fatt.n. 8PU_PA2018  del 02/05/2018 CIG Z8321734AD;10/05/2018;1302;1;547;1;Spese correnti;3;Acquisto di beni e servizi;2;Acquisto di servizi;9;Manutenzione ordinaria e riparazioni;8;Manutenzione ordinaria e riparazioni di beni immobili;10/05/2018
672;1;0;5.619,44;5.619,44;LALLAI MARCO;ZD1217322B;SALDO Fatt.n. 1/PA  del 04/05/2018 CIG: ZDI21322B;10/05/2018;2991;4;545;2;Spese in conto capitale;2;Investimenti fissi lordi e acquisto di terreni;1;Beni materiali;9;Beni immobili;999;Beni immobili n.a.c.;10/05/2018
673;1;0;62,51;328,85;KUWAIT PETROLEUM ITALIA SPA;Z621D28DB4;SALDO Fatt.n. PJ00123070  del 30/04/2018;10/05/2018;208;8;508;1;Spese correnti;3;Acquisto di beni e servizi;1;Acquisto di beni;2;Altri beni di consumo;2;Carburanti, combustibili e lubrificanti;10/05/2018
673;2;0;266,34;328,85;KUWAIT PETROLEUM ITALIA SPA;Z621D28DB4;ACCONTO Fatt.n. PJ00123070  del 30/04/2018;10/05/2018;208;8;508;1;Spese correnti;3;Acquisto di beni e servizi;1;Acquisto di beni;2;Altri beni di consumo;2;Carburanti, combustibili e lubrificanti;10/05/2018
674;1;0;0,14;0,14;AGENZIA DELLE ENTRATE - RISCOSSIONE; ;COMMISSIONI RISCOSSIONI TRIBUTI;10/05/2018;190;1;946;1;Spese correnti;3;Acquisto di beni e servizi;2;Acquisto di servizi;3;Aggi di riscossione;999;Altri aggi di riscossione n.a.c.;10/05/2018
675;1;0;1,64;1,64;AGENZIA DELLE ENTRATE - RISCOSSIONE; ;COMMISSIONI RISCOSSIONI TRIBUTI;10/05/2018;190;1;946;1;Spese correnti;3;Acquisto di beni e servizi;2;Acquisto di servizi;3;Aggi di riscossione;999;Altri aggi di riscossione n.a.c.;10/05/2018
676;1;0;1.130,91;1.130,91;OMESSO NOMINATIVO NEL RISPETTO DELLA NORMATIVA SULLA PROTEZIONE DATI PERSONALI; ;PROGETTO RITORNARE A CASA-Mese Aprile 2018-;10/05/2018;1448;1;969;1;Spese correnti;4;Trasferimenti correnti;2;Trasferimenti correnti a Famiglie;2;Interventi assistenziali;999;Altri assegni e sussidi assistenziali;10/05/2018
677;1;0;282,72;282,72;OMESSO NOMINATIVO NEL RISPETTO DELLA NORMATIVA SULLA PROTEZIONE DATI PERSONALI; ;"Legge regionale n. 4 dell'11/05/2006, art. 17, comma 1. Finanziamento per il programma sperimentale ""Ritornare a casa"". Liquidazione di spesa in favore di un beneficiario. APRILE 2018.";10/05/2018;1448;5;84;1;Spese correnti;4;Trasferimenti correnti;2;Trasferimenti correnti a Famiglie;2;Interventi assistenziali;999;Altri assegni e sussidi assistenziali;10/05/2018
678;1;0;295;295;COMUNE DI CAGLIARI; ;LIQUIDAZIONE SPESA SPESE COMMISSIONE CIRCONDARIALE;14/05/2018;288;1;455;1;Spese correnti;3;Acquisto di beni e servizi;2;Acquisto di servizi;1;Organi e incarichi istituzionali dell'amministrazione;7;Commissioni elettorali;14/05/2018
679;1;0;288;288;COMUNE DI CAGLIARI; ;Liquidazione SPESA RIPARTO SPESE COMMISSIONE ELETTORALE CIRCONDARIALE;14/05/2018;288;1;622;1;Spese correnti;3;Acquisto di beni e servizi;2;Acquisto di servizi;1;Organi e incarichi istituzionali dell'amministrazione;7;Commissioni elettorali;14/05/2018
680;1;0;288;288;COMUNE DI CAGLIARI; ;ART. 62 D.P.R. 20.03.1967, N. 223 - RIPARTO SPESE COMMISSIONE ELETTORALE CIRCOSCRIZIONALE - ANNO 2013 - LIQUIDAZIONE DI SPESA PER QUOTA A CARICO DEL COMUNE DI SANT' ANDREA FRIUS .;14/05/2018;288;1;677;1;Spese correnti;3;Acquisto di beni e servizi;2;Acquisto di servizi;1;Organi e incarichi istituzionali dell'amministrazione;7;Commissioni elettorali;14/05/2018
681;1;0;274,79;274,79;COMUNE DI CAGLIARI; ;ART. 62 D.P.R. 20.03.1967, N. 223 - RIPARTO SPESE COMMISSIONE ELETTORALE CIRCONDARIALE - ANNO 2014 - LIQUIDAZIONE DI SPESA PER QUOTA A CARICO DEL COMUNE DI SANT' ANDREA FRIUS -;14/05/2018;288;1;514;1;Spese correnti;3;Acquisto di beni e servizi;2;Acquisto di servizi;1;Organi e incarichi istituzionali dell'amministrazione;7;Commissioni elettorali;14/05/2018
682;1;0;221;221;COMUNE DI CAGLIARI; ;ART. 62 D.P.R. 20.03.1967, N.223 - RIPARTO SPESE COMMISSIONE ELETTORALE CORCONDARIALE- ANNO 2015 - LIQUIDAZIONE DI SPESA PER QUOTA A CARICO DEL COMUNE DI SANT' ANDREA FRIUS.;14/05/2018;288;1;707;1;Spese correnti;3;Acquisto di beni e servizi;2;Acquisto di servizi;1;Organi e incarichi istituzionali dell'amministrazione;7;Commissioni elettorali;14/05/2018
683;1;0;208;208;COMUNE DI CAGLIARI; ;RIPARTO SPESE COMMISSIONE ELETTORALE CIRCONDARIALE . ART. 62 D.P.R. 20.03.1967, N. 223.LIQUIDAZIONE DI SPESA PER QUOTA A CARICO DEL COMUNE DI SANT' ANDREA FRIUS. ANNO 2016 -;14/05/2018;288;1;176;1;Spese correnti;3;Acquisto di beni e servizi;2;Acquisto di servizi;1;Organi e incarichi istituzionali dell'amministrazione;7;Commissioni elettorali;14/05/2018
684;1;0;2;194,63;POSTE ITALIANE spa;Z4A1F1447A;ACCONTO Fatt.n. 8718145650  del 07/05/2018 Fattura Elettronica relativa all'Identificativo Rendiconto 2097054388;14/05/2018;118;7;228;1;Spese correnti;3;Acquisto di beni e servizi;2;Acquisto di servizi;16;Servizi amministrativi;2;Spese postali;14/05/2018
684;2;0;192,63;194,63;POSTE ITALIANE spa;Z4A1F1447A;SALDO Fatt.n. 8718145650  del 07/05/2018 Fattura Elettronica relativa all'Identificativo Rendiconto 2097054388;14/05/2018;118;7;228;1;Spese correnti;3;Acquisto di beni e servizi;2;Acquisto di servizi;16;Servizi amministrativi;2;Spese postali;14/05/2018
685;1;0;7,32;7,32;ARUBA.IT ARUBA SPA;ZF422CC6BD;SALDO Fatt.n. A18PAS0004367  del 31/03/2018;14/05/2018;14;5;132;1;Spese correnti;3;Acquisto di beni e servizi;2;Acquisto di servizi;19;Servizi informatici e di telecomunicazioni;999;Altri servizi informatici e di telecomunicazioni n.a.c.;14/05/2018
720;1;0;1.301,48;1.301,48;DIVERSI DIPENDENTI; ;LIQUIDAZIONE SPESA PER LA CORRESPONSIONE DELL' INDENNITA' DI FUNZIONE SINDACO MESE APRILE 2018;15/05/2018;14;1;6;1;Spese correnti;3;Acquisto di beni e servizi;2;Acquisto di servizi;1;Organi e incarichi istituzionali dell'amministrazione;1;Organi istituzionali dell'amministrazione - Indennità;15/05/2018
722;1;0;4.000,00;4.000,00;FANUNZA ROBERTO;Z8E21732BD;ACCONTO Fatt.n. 1/PA  del 04/05/2018 CIG: Z8E21732BD;15/05/2018;3376;2;541;2;Spese in conto capitale;2;Investimenti fissi lordi e acquisto di terreni;1;Beni materiali;10;Beni immobili di valore culturale, storico ed artistico;6;Cimiteri di valore culturale, storico ed artistico;15/05/2018
723;1;0;6.000,00;6.000,00;FANUNZA ROBERTO;Z8E21732BD;ACCONTO Fatt.n. 1/PA  del 04/05/2018 CIG: Z8E21732BD;15/05/2018;3376;3;542;2;Spese in conto capitale;2;Investimenti fissi lordi e acquisto di terreni;1;Beni materiali;9;Beni immobili;15;Cimiteri;15/05/2018
724;1;0;1.303,28;1.303,28;FANUNZA ROBERTO;Z8E21732BD;SALDO Fatt.n. 1/PA  del 04/05/2018 CIG: Z8E21732BD;15/05/2018;3238;1;544;2;Spese in conto capitale;2;Investimenti fissi lordi e acquisto di terreni;1;Beni materiali;9;Beni immobili;15;Cimiteri;15/05/2018
725;1;0;454,08;454,08;OMESSO NOMINATIVO NEL RISPETTO DELLA NORMATIVA SULLA PROTEZIONE DATI PERSONALI; ;L. 162/98. Piani personalizzati di sostegno in favore di persone con handicap grave. febbraio-marzo 2018. Liquidazione di spesa in favore di n. 46 beneficiari.;15/05/2018;1429;1;65;1;Spese correnti;4;Trasferimenti correnti;2;Trasferimenti correnti a Famiglie;2;Interventi assistenziali;999;Altri assegni e sussidi assistenziali;15/05/2018
726;1;0;303,35;303,35;OMESSO NOMINATIVO NEL RISPETTO DELLA NORMATIVA SULLA PROTEZIONE DATI PERSONALI; ;L. 162/98. Piani personalizzati di sostegno in favore di persone con handicap grave.  Marzo- aprile 2018.  di spesa in favore di n. 46 beneficiari.;15/05/2018;1429;1;65;1;Spese correnti;4;Trasferimenti correnti;2;Trasferimenti correnti a Famiglie;2;Interventi assistenziali;999;Altri assegni e sussidi assistenziali;15/05/2018
727;1;0;294;294;OMESSO NOMINATIVO NEL RISPETTO DELLA NORMATIVA SULLA PROTEZIONE DATI PERSONALI; ;L. 162/98. Piani personalizzati di sostegno in favore di persone con handicap grave. Proroga Marzo - Aprile 2018. LIQUIDAZIONE di spesa in favore di n. 46 beneficiari.;15/05/2018;1429;1;65;1;Spese correnti;4;Trasferimenti correnti;2;Trasferimenti correnti a Famiglie;2;Interventi assistenziali;999;Altri assegni e sussidi assistenziali;15/05/2018
728;1;0;294;294;OMESSO NOMINATIVO NEL RISPETTO DELLA NORMATIVA SULLA PROTEZIONE DATI PERSONALI; ;L. 162/98. Piani personalizzati di sostegno in favore di persone con handicap grave. marzo- aprile 2018.Liquidazione di spesa in favore di n. 46 beneficiari.;15/05/2018;1429;1;65;1;Spese correnti;4;Trasferimenti correnti;2;Trasferimenti correnti a Famiglie;2;Interventi assistenziali;999;Altri assegni e sussidi assistenziali;15/05/2018
729;1;0;312,34;312,34;OMESSO NOMINATIVO NEL RISPETTO DELLA NORMATIVA SULLA PROTEZIONE DATI PERSONALI; ;L. 162/98. Piani personalizzati di sostegno in favore di persone con handicap grave. Marzo - Aprile 2018. Liquidazione di spesa in favore di n. 46 beneficiari.;15/05/2018;1429;1;65;1;Spese correnti;4;Trasferimenti correnti;2;Trasferimenti correnti a Famiglie;2;Interventi assistenziali;999;Altri assegni e sussidi assistenziali;15/05/2018
730;1;0;375;375;OMESSO NOMINATIVO NEL RISPETTO DELLA NORMATIVA SULLA PROTEZIONE DATI PERSONALI; ;L. 162/98. Piani personalizzati di sostegno in favore di persone con handicap grave. MARZO APRILE- 2018.LIQUIDAZIONE di spesa in favore di n. 46 beneficiari.;15/05/2018;1429;1;65;1;Spese correnti;4;Trasferimenti correnti;2;Trasferimenti correnti a Famiglie;2;Interventi assistenziali;999;Altri assegni e sussidi assistenziali;15/05/2018
731;1;0;500;500;OMESSO NOMINATIVO NEL RISPETTO DELLA NORMATIVA SULLA PROTEZIONE DATI PERSONALI; ;L. 162/98. Piani personalizzati di sostegno in favore di persone con handicap grave. Marzo aprile 2018. liquidazione di spesa in favore di n. 46 beneficiari.;15/05/2018;1429;1;65;1;Spese correnti;4;Trasferimenti correnti;2;Trasferimenti correnti a Famiglie;2;Interventi assistenziali;999;Altri assegni e sussidi assistenziali;15/05/2018
732;1;0;363,32;363,32;OMESSO NOMINATIVO NEL RISPETTO DELLA NORMATIVA SULLA PROTEZIONE DATI PERSONALI; ;L. 162/98. Piani personalizzati di sostegno in favore di persone con handicap grave. Marzo- aprile 2018. liquidazione di spesa in favore di n. 46 beneficiari.;15/05/2018;1429;1;65;1;Spese correnti;4;Trasferimenti correnti;2;Trasferimenti correnti a Famiglie;2;Interventi assistenziali;999;Altri assegni e sussidi assistenziali;15/05/2018
733;1;0;362,66;362,66;OMESSO NOMINATIVO NEL RISPETTO DELLA NORMATIVA SULLA PROTEZIONE DATI PERSONALI; ;L. 162/98. Piani personalizzati di sostegno in favore di persone con handicap grave. Marzo - aprile 2018. Liquidazione di spesa in favore di n. 46 beneficiari.;15/05/2018;1429;1;65;1;Spese correnti;4;Trasferimenti correnti;2;Trasferimenti correnti a Famiglie;2;Interventi assistenziali;999;Altri assegni e sussidi assistenziali;15/05/2018
734;1;0;363,66;363,66;OMESSO NOMINATIVO NEL RISPETTO DELLA NORMATIVA SULLA PROTEZIONE DATI PERSONALI; ;L. 162/98. Piani personalizzati di sostegno in favore di persone con handicap grave.  Marzo - aprile 2018.liquidazione di spesa in favore di n. 46 beneficiari.;15/05/2018;1429;1;65;1;Spese correnti;4;Trasferimenti correnti;2;Trasferimenti correnti a Famiglie;2;Interventi assistenziali;999;Altri assegni e sussidi assistenziali;15/05/2018
735;1;0;312,32;312,32;OMESSO NOMINATIVO NEL RISPETTO DELLA NORMATIVA SULLA PROTEZIONE DATI PERSONALI; ;L. 162/98. Piani personalizzati di sostegno in favore di persone con handicap grave. Marzo aprile 2018.Liquidazione di spesa in favore di n. 46 beneficiari.;15/05/2018;1429;1;65;1;Spese correnti;4;Trasferimenti correnti;2;Trasferimenti correnti a Famiglie;2;Interventi assistenziali;999;Altri assegni e sussidi assistenziali;15/05/2018
736;1;0;1.000,00;1.000,00;OMESSO NOMINATIVO NEL RISPETTO DELLA NORMATIVA SULLA PROTEZIONE DATI PERSONALI; ;L. 162/98. Piani personalizzati di sostegno in favore di persone con handicap grave. Marzo - aprile 2018. Liquidazione di spesa in favore di n. 46 beneficiari.;15/05/2018;1429;1;65;1;Spese correnti;4;Trasferimenti correnti;2;Trasferimenti correnti a Famiglie;2;Interventi assistenziali;999;Altri assegni e sussidi assistenziali;15/05/2018
737;1;0;624;624;OMESSO NOMINATIVO NEL RISPETTO DELLA NORMATIVA SULLA PROTEZIONE DATI PERSONALI; ;L. 162/98. Piani personalizzati di sostegno in favore di persone con handicap grave. Marzo - Aprile 2018.liquidazione di spesa in favore di n. 46 beneficiari.;15/05/2018;1429;1;65;1;Spese correnti;4;Trasferimenti correnti;2;Trasferimenti correnti a Famiglie;2;Interventi assistenziali;999;Altri assegni e sussidi assistenziali;15/05/2018
738;1;0;375;375;OMESSO NOMINATIVO NEL RISPETTO DELLA NORMATIVA SULLA PROTEZIONE DATI PERSONALI; ;L. 162/98. Piani personalizzati di sostegno in favore di persone con handicap grave. Marzo- aprile 2018.liquidazione  di spesa in favore di n. 46 beneficiari.;15/05/2018;1429;1;65;1;Spese correnti;4;Trasferimenti correnti;2;Trasferimenti correnti a Famiglie;2;Interventi assistenziali;999;Altri assegni e sussidi assistenziali;15/05/2018
739;1;0;363,66;363,66;OMESSO NOMINATIVO NEL RISPETTO DELLA NORMATIVA SULLA PROTEZIONE DATI PERSONALI; ;L. 162/98. Piani personalizzati di sostegno in favore di persone con handicap grave.marzo  aprile 2018. liquidazione  di spesa in favore di n. 46 beneficiari.;15/05/2018;1429;1;65;1;Spese correnti;4;Trasferimenti correnti;2;Trasferimenti correnti a Famiglie;2;Interventi assistenziali;999;Altri assegni e sussidi assistenziali;15/05/2018
740;1;0;1.200,00;1.200,00;OMESSO NOMINATIVO NEL RISPETTO DELLA NORMATIVA SULLA PROTEZIONE DATI PERSONALI; ;L. 162/98. Piani personalizzati di sostegno in favore di persone con handicap grave Marzo - aprile 2018. liquidazione di spesa in favore di n. 46 beneficiari.;15/05/2018;1429;1;65;1;Spese correnti;4;Trasferimenti correnti;2;Trasferimenti correnti a Famiglie;2;Interventi assistenziali;999;Altri assegni e sussidi assistenziali;15/05/2018
741;1;0;135,03;135,03;OMESSO NOMINATIVO NEL RISPETTO DELLA NORMATIVA SULLA PROTEZIONE DATI PERSONALI; ;L. 162/98. Piani personalizzati di sostegno in favore di persone con handicap grave.  - aprile 2018. liquidazione di spesa in favore di n. 46 beneficiari.;15/05/2018;1429;1;65;1;Spese correnti;4;Trasferimenti correnti;2;Trasferimenti correnti a Famiglie;2;Interventi assistenziali;999;Altri assegni e sussidi assistenziali;15/05/2018
742;1;0;129,58;129,58;OMESSO NOMINATIVO NEL RISPETTO DELLA NORMATIVA SULLA PROTEZIONE DATI PERSONALI; ;L. 162/98. Piani personalizzati di sostegno in favore di persone con handicap grave. - Aprile 2018. Liquidazione di spesa in favore di n. 46 beneficiari.;15/05/2018;1429;1;65;1;Spese correnti;4;Trasferimenti correnti;2;Trasferimenti correnti a Famiglie;2;Interventi assistenziali;999;Altri assegni e sussidi assistenziali;15/05/2018
743;1;0;227,34;227,34;OMESSO NOMINATIVO NEL RISPETTO DELLA NORMATIVA SULLA PROTEZIONE DATI PERSONALI; ;L. 162/98. Piani personalizzati di sostegno in favore di persone con handicap grave.   Aprile 2018.LIQUIDAZIONE  di spesa in favore di n. 46 beneficiari.;15/05/2018;1429;1;65;1;Spese correnti;4;Trasferimenti correnti;2;Trasferimenti correnti a Famiglie;2;Interventi assistenziali;999;Altri assegni e sussidi assistenziali;15/05/2018
744;1;0;846,89;846,89;OMESSO NOMINATIVO NEL RISPETTO DELLA NORMATIVA SULLA PROTEZIONE DATI PERSONALI; ;L. 162/98. Piani personalizzati di sostegno in favore di persone con handicap grave.-Aprile 2018LIQUIDAZIONE di spesa in favore di n. 46 beneficiari.;15/05/2018;1429;1;65;1;Spese correnti;4;Trasferimenti correnti;2;Trasferimenti correnti a Famiglie;2;Interventi assistenziali;999;Altri assegni e sussidi assistenziali;15/05/2018
745;1;0;107;107;OMESSO NOMINATIVO NEL RISPETTO DELLA NORMATIVA SULLA PROTEZIONE DATI PERSONALI; ;L. 162/98. Piani personalizzati di sostegno in favore di persone con handicap grave. Proroga gennaio - aprile 2018. liquidazione di spesa in favore di n. 46 beneficiari.;15/05/2018;1429;1;65;1;Spese correnti;4;Trasferimenti correnti;2;Trasferimenti correnti a Famiglie;2;Interventi assistenziali;999;Altri assegni e sussidi assistenziali;15/05/2018
746;1;0;207;207;OMESSO NOMINATIVO NEL RISPETTO DELLA NORMATIVA SULLA PROTEZIONE DATI PERSONALI; ;L. 162/98. Piani personalizzati di sostegno in favore di persone con handicap grave.  - Aprile 2018. Liquidazione di spesa in favore di n. 46 beneficiari.;15/05/2018;1429;1;65;1;Spese correnti;4;Trasferimenti correnti;2;Trasferimenti correnti a Famiglie;2;Interventi assistenziali;999;Altri assegni e sussidi assistenziali;15/05/2018
747;1;0;314,44;314,44;OMESSO NOMINATIVO NEL RISPETTO DELLA NORMATIVA SULLA PROTEZIONE DATI PERSONALI; ;L. 162/98. Piani personalizzati di sostegno in favore di persone con handicap grave. - Aprile 2018. Liquidazione di spesa in favore di n. 46 beneficiari.;15/05/2018;1429;1;65;1;Spese correnti;4;Trasferimenti correnti;2;Trasferimenti correnti a Famiglie;2;Interventi assistenziali;999;Altri assegni e sussidi assistenziali;15/05/2018
748;1;0;790,99;790,99;OMESSO NOMINATIVO NEL RISPETTO DELLA NORMATIVA SULLA PROTEZIONE DATI PERSONALI; ;L. 162/98. Piani personalizzati di sostegno in favore di persone con handicap grave.  - Aprile 2018. LIQUIDAZIONE di spesa in favore di n. 46 beneficiari.;15/05/2018;1429;1;65;1;Spese correnti;4;Trasferimenti correnti;2;Trasferimenti correnti a Famiglie;2;Interventi assistenziali;999;Altri assegni e sussidi assistenziali;15/05/2018
749;1;0;935;935;OMESSO NOMINATIVO NEL RISPETTO DELLA NORMATIVA SULLA PROTEZIONE DATI PERSONALI; ;L. 162/98. Piani personalizzati di sostegno in favore di persone con handicap grave. Aprile 2018. LIQUIDAZIONE di spesa in favore di n. 46 beneficiari.;15/05/2018;1429;1;65;1;Spese correnti;4;Trasferimenti correnti;2;Trasferimenti correnti a Famiglie;2;Interventi assistenziali;999;Altri assegni e sussidi assistenziali;15/05/2018
750;1;0;102,79;102,79;OMESSO NOMINATIVO NEL RISPETTO DELLA NORMATIVA SULLA PROTEZIONE DATI PERSONALI; ;L. 162/98. Piani personalizzati di sostegno in favore di persone con handicap grave. - Aprile 2018. Liquidazione di spesa in favore di n. 46 beneficiari.;15/05/2018;1429;1;65;1;Spese correnti;4;Trasferimenti correnti;2;Trasferimenti correnti a Famiglie;2;Interventi assistenziali;999;Altri assegni e sussidi assistenziali;15/05/2018
751;1;0;962;962;OMESSO NOMINATIVO NEL RISPETTO DELLA NORMATIVA SULLA PROTEZIONE DATI PERSONALI; ;L. 162/98. Piani personalizzati di sostegno in favore di persone con handicap grave.  - Aprile 2018.LIQIUIDAZIONE di spesa in favore di n. 46 beneficiari.;15/05/2018;1429;1;65;1;Spese correnti;4;Trasferimenti correnti;2;Trasferimenti correnti a Famiglie;2;Interventi assistenziali;999;Altri assegni e sussidi assistenziali;15/05/2018
752;1;0;149,73;149,73;OMESSO NOMINATIVO NEL RISPETTO DELLA NORMATIVA SULLA PROTEZIONE DATI PERSONALI; ;L. 162/98. Piani personalizzati di sostegno in favore di persone con handicap grave.  - Aprile 2018. liquidazione di spesa in favore di n. 46 beneficiari.;15/05/2018;1429;1;65;1;Spese correnti;4;Trasferimenti correnti;2;Trasferimenti correnti a Famiglie;2;Interventi assistenziali;999;Altri assegni e sussidi assistenziali;15/05/2018
753;1;0;250;250;OMESSO NOMINATIVO NEL RISPETTO DELLA NORMATIVA SULLA PROTEZIONE DATI PERSONALI; ;L. 162/98. Piani personalizzati di sostegno in favore di persone con handicap grave.  - aprile 2018.LIQUIDAZIONE Di spesa in favore di n. 46 beneficiari.;15/05/2018;1429;1;65;1;Spese correnti;4;Trasferimenti correnti;2;Trasferimenti correnti a Famiglie;2;Interventi assistenziali;999;Altri assegni e sussidi assistenziali;15/05/2018
754;1;0;697;697;OMESSO NOMINATIVO NEL RISPETTO DELLA NORMATIVA SULLA PROTEZIONE DATI PERSONALI; ;L. 162/98. Piani personalizzati di sostegno in favore di persone con handicap grave.  - aprile 2018. LIQUIDAZIONE di spesa in favore di n. 46 beneficiari.;15/05/2018;1429;1;65;1;Spese correnti;4;Trasferimenti correnti;2;Trasferimenti correnti a Famiglie;2;Interventi assistenziali;999;Altri assegni e sussidi assistenziali;15/05/2018
755;1;0;100,99;100,99;OMESSO NOMINATIVO NEL RISPETTO DELLA NORMATIVA SULLA PROTEZIONE DATI PERSONALI; ;L. 162/98. Piani personalizzati di sostegno in favore di persone con handicap grave. Proroga gennaio - aprile 2018. Liquidazione di spesa in favore di n. 46 beneficiari.;15/05/2018;1429;1;65;1;Spese correnti;4;Trasferimenti correnti;2;Trasferimenti correnti a Famiglie;2;Interventi assistenziali;999;Altri assegni e sussidi assistenziali;15/05/2018
756;1;0;911,18;911,18;OMESSO NOMINATIVO NEL RISPETTO DELLA NORMATIVA SULLA PROTEZIONE DATI PERSONALI; ;L. 162/98. Piani personalizzati di sostegno in favore di persone con handicap grave.  - aprile 2018 Liquidazione di spesa in favore di n. 46 beneficiari.;15/05/2018;1429;1;65;1;Spese correnti;4;Trasferimenti correnti;2;Trasferimenti correnti a Famiglie;2;Interventi assistenziali;999;Altri assegni e sussidi assistenziali;15/05/2018
757;1;0;156,69;156,69;OMESSO NOMINATIVO NEL RISPETTO DELLA NORMATIVA SULLA PROTEZIONE DATI PERSONALI; ;L. 162/98. Piani personalizzati di sostegno in favore di persone con handicap grave.  - aprile 2018. Liquidazione di spesa in favore di n. 46 beneficiari.;15/05/2018;1429;1;65;1;Spese correnti;4;Trasferimenti correnti;2;Trasferimenti correnti a Famiglie;2;Interventi assistenziali;999;Altri assegni e sussidi assistenziali;15/05/2018
758;1;0;210,77;210,77;OMESSO NOMINATIVO NEL RISPETTO DELLA NORMATIVA SULLA PROTEZIONE DATI PERSONALI; ;L. 162/98. Piani personalizzati di sostegno in favore di persone con handicap grave. Proroga gennaio - aprile 2018. Impegno di spesa in favore di n. 46 beneficiari.;15/05/2018;1429;1;65;1;Spese correnti;4;Trasferimenti correnti;2;Trasferimenti correnti a Famiglie;2;Interventi assistenziali;999;Altri assegni e sussidi assistenziali;15/05/2018
759;1;0;127,4;127,4;OMESSO NOMINATIVO NEL RISPETTO DELLA NORMATIVA SULLA PROTEZIONE DATI PERSONALI; ;L. 162/98. Piani personalizzati di sostegno in favore di persone con handicap grave. - aprile 2018.liquidazione di spesa in favore di n. 46 beneficiari.;15/05/2018;1429;1;65;1;Spese correnti;4;Trasferimenti correnti;2;Trasferimenti correnti a Famiglie;2;Interventi assistenziali;999;Altri assegni e sussidi assistenziali;15/05/2018
760;1;0;129,46;129,46;OMESSO NOMINATIVO NEL RISPETTO DELLA NORMATIVA SULLA PROTEZIONE DATI PERSONALI; ;L. 162/98. Piani personalizzati di sostegno in favore di persone con handicap grave. - aprile 2018.liquidazione di spesa in favore di n. 46 beneficiari.;15/05/2018;1429;1;65;1;Spese correnti;4;Trasferimenti correnti;2;Trasferimenti correnti a Famiglie;2;Interventi assistenziali;999;Altri assegni e sussidi assistenziali;15/05/2018
761;1;0;955;955;OMESSO NOMINATIVO NEL RISPETTO DELLA NORMATIVA SULLA PROTEZIONE DATI PERSONALI; ;L. 162/98. Piani personalizzati di sostegno in favore di persone con handicap grave. - aprile 2018. Liquidazione di spesa in favore di n. 46 liquidazionebeneficiari.;15/05/2018;1429;1;65;1;Spese correnti;4;Trasferimenti correnti;2;Trasferimenti correnti a Famiglie;2;Interventi assistenziali;999;Altri assegni e sussidi assistenziali;15/05/2018
762;1;0;2.096,16;2.096,16;A.TEC. sas;ZF81CFC522;ACCONTO Fatt.n. FATTPA 20_18  del 14/05/2018;17/05/2018;218;1;130;1;Spese correnti;3;Acquisto di beni e servizi;2;Acquisto di servizi;9;Manutenzione ordinaria e riparazioni;4;Manutenzione ordinaria e riparazioni di impianti e macchinari;17/05/2018
763;1;0;1.090,68;1.090,68;A.TEC. sas;ZF81CFC522;SALDO Fatt.n. FATTPA 20_18  del 14/05/2018;17/05/2018;218;1;130;1;Spese correnti;3;Acquisto di beni e servizi;2;Acquisto di servizi;9;Manutenzione ordinaria e riparazioni;4;Manutenzione ordinaria e riparazioni di impianti e macchinari;17/05/2018
764;1;0;784,9;2.169,79;CAPRA DAVIDE MARIO; ;ACCONTO Fatt.n. 000001-2018-PA  del 14/05/2018 Consulenza Tecnica d'Ufficio integrativa - Procedimento R.G. n. 2495/11 Comune di S.Andrea Frius / Tecnocasic spa in liquid.;17/05/2018;126;1;158;1;Spese correnti;3;Acquisto di beni e servizi;2;Acquisto di servizi;11;Prestazioni professionali e specialistiche;6;Patrocinio legale;17/05/2018
764;2;0;1.384,89;2.169,79;CAPRA DAVIDE MARIO; ;ACCONTO Fatt.n. 000001-2018-PA  del 14/05/2018 Consulenza Tecnica d'Ufficio integrativa - Procedimento R.G. n. 2495/11 Comune di S.Andrea Frius / Tecnocasic spa in liquid.;17/05/2018;126;1;158;1;Spese correnti;3;Acquisto di beni e servizi;2;Acquisto di servizi;11;Prestazioni professionali e specialistiche;6;Patrocinio legale;17/05/2018
765;1;0;600;600;CAPRA DAVIDE MARIO; ;SALDO Fatt.n. 000001-2018-PA  del 14/05/2018 Consulenza Tecnica d'Ufficio integrativa - Procedimento R.G. n. 2495/11 Comune di S.Andrea Frius / Tecnocasic spa in liquid.;17/05/2018;126;1;342;1;Spese correnti;3;Acquisto di beni e servizi;2;Acquisto di servizi;11;Prestazioni professionali e specialistiche;6;Patrocinio legale;17/05/2018
766;1;0;180;180;OMESSO NOMINATIVO NEL RISPETTO DELLA NORMATIVA SULLA PROTEZIONE DATI PERSONALI; ;Servizio di Assistenza Domiciliare per anziani e disabili. LIQUIDAZIONE di spesa.MARZO -APRILE 2018.;18/05/2018;1433;3;64;1;Spese correnti;4;Trasferimenti correnti;2;Trasferimenti correnti a Famiglie;2;Interventi assistenziali;999;Altri assegni e sussidi assistenziali;18/05/2018
767;1;0;486;486;OMESSO NOMINATIVO NEL RISPETTO DELLA NORMATIVA SULLA PROTEZIONE DATI PERSONALI; ;Servizio di Assistenza Domiciliare per anziani e disabili Liquidazionedi spesa. Marzo-Aprile 2018.;18/05/2018;1433;3;64;1;Spese correnti;4;Trasferimenti correnti;2;Trasferimenti correnti a Famiglie;2;Interventi assistenziali;999;Altri assegni e sussidi assistenziali;18/05/2018
768;1;0;150;150;OMESSO NOMINATIVO NEL RISPETTO DELLA NORMATIVA SULLA PROTEZIONE DATI PERSONALI; ;Servizio di Assistenza Domiciliare per anziani e disabili. Impegno di spesa. Gennaio - giugno 2018.;18/05/2018;1433;3;64;1;Spese correnti;4;Trasferimenti correnti;2;Trasferimenti correnti a Famiglie;2;Interventi assistenziali;999;Altri assegni e sussidi assistenziali;18/05/2018
769;1;0;260,7;260,7;OMESSO NOMINATIVO NEL RISPETTO DELLA NORMATIVA SULLA PROTEZIONE DATI PERSONALI; ;Servizio di Assistenza Domiciliare per anziani e disabili.liquidazione di spesa. Mese Aprile 2018.;18/05/2018;1433;3;64;1;Spese correnti;4;Trasferimenti correnti;2;Trasferimenti correnti a Famiglie;2;Interventi assistenziali;999;Altri assegni e sussidi assistenziali;18/05/2018
770;1;0;396;396;OMESSO NOMINATIVO NEL RISPETTO DELLA NORMATIVA SULLA PROTEZIONE DATI PERSONALI; ;Servizio di Assistenza Domiciliare per anziani e disabili. LIQUIDAZIONEdi spesa. MARZO-APRILE 2018.;18/05/2018;1433;3;64;1;Spese correnti;4;Trasferimenti correnti;2;Trasferimenti correnti a Famiglie;2;Interventi assistenziali;999;Altri assegni e sussidi assistenziali;18/05/2018
771;1;0;48,04;48,04;OMESSO NOMINATIVO NEL RISPETTO DELLA NORMATIVA SULLA PROTEZIONE DATI PERSONALI; ;Servizio di Assistenza Domiciliare per anziani e disabili.LIQUIDAZIONE spesa. Aprile 2018.;18/05/2018;1433;3;64;1;Spese correnti;4;Trasferimenti correnti;2;Trasferimenti correnti a Famiglie;2;Interventi assistenziali;999;Altri assegni e sussidi assistenziali;18/05/2018
772;1;0;480;480;OMESSO NOMINATIVO NEL RISPETTO DELLA NORMATIVA SULLA PROTEZIONE DATI PERSONALI; ;Servizio di Assistenza Domiciliare per anziani e disabili.LIQUIDAZIONE DI Spesa. MARZO-APRILE480 2018.;18/05/2018;1433;3;64;1;Spese correnti;4;Trasferimenti correnti;2;Trasferimenti correnti a Famiglie;2;Interventi assistenziali;999;Altri assegni e sussidi assistenziali;18/05/2018
773;1;0;91;91;OMESSO NOMINATIVO NEL RISPETTO DELLA NORMATIVA SULLA PROTEZIONE DATI PERSONALI; ;Servizio di Assistenza Domiciliare per anziani e disabili. Impegno di spesa in favore di n. 1 beneficiario. Aprile - giugno 2018.;18/05/2018;1433;3;159;1;Spese correnti;4;Trasferimenti correnti;2;Trasferimenti correnti a Famiglie;2;Interventi assistenziali;999;Altri assegni e sussidi assistenziali;18/05/2018
774;1;0;4.011,79;4.011,79;I.M.E.C.O. S.A.S DI SPIGA IGNAZIO;ZFA2143E7E;SALDO Fatt.n. 81/PA/2018  del 16/05/2018 SERVIZI DI INSTALLAZIONE E MANUTENZIONE IMPIANTI ELETTRICI.;18/05/2018;3238;1;487;2;Spese in conto capitale;2;Investimenti fissi lordi e acquisto di terreni;1;Beni materiali;9;Beni immobili;12;Infrastrutture stradali;18/05/2018
775;1;0;741,44;741,44;I.M.E.C.O. S.A.S DI SPIGA IGNAZIO;Z40227445A;SALDO Fatt.n. 77/PA/2018  del 14/05/2018 SERVIZI DI INSTALLAZIONE E MANUTENZIONE IMPIANTI ELETTRICI.;18/05/2018;3238;1;116;2;Spese in conto capitale;2;Investimenti fissi lordi e acquisto di terreni;1;Beni materiali;9;Beni immobili;12;Infrastrutture stradali;18/05/2018
776;1;0;347,38;347,38;OMESSO NOMINATIVO NEL RISPETTO DELLA NORMATIVA SULLA PROTEZIONE DATI PERSONALI; ;L. 162/98. Piani personalizzati di sostegno in favore di persone con handicap grave. mese marzo 2018. liquidazione di spesa in favore di n. 46 beneficiari.;18/05/2018;1429;1;65;1;Spese correnti;4;Trasferimenti correnti;2;Trasferimenti correnti a Famiglie;2;Interventi assistenziali;999;Altri assegni e sussidi assistenziali;18/05/2018
777;1;0;-2.970,00;2.969,99;AS.TR.E.D. COOP. SOCIALE;Z8321734AD;SALDO Fatt.n. NC01PU_PA2018  del 21/05/2018 Storno totale fattura n. 09PU_PA2018 del 16/05/2018;23/05/2018;1493;1;548;1;Spese correnti;3;Acquisto di beni e servizi;2;Acquisto di servizi;9;Manutenzione ordinaria e riparazioni;8;Manutenzione ordinaria e riparazioni di beni immobili;23/05/2018
777;2;0;-0,01;2.969,99;AS.TR.E.D. COOP. SOCIALE;Z8321734AD;ACCONTO Fatt.n. 10PU_PA2018  del 21/05/2018 CIG Z8321734AD;23/05/2018;1493;1;548;1;Spese correnti;3;Acquisto di beni e servizi;2;Acquisto di servizi;9;Manutenzione ordinaria e riparazioni;8;Manutenzione ordinaria e riparazioni di beni immobili;23/05/2018
777;3;0;2.970,00;2.969,99;AS.TR.E.D. COOP. SOCIALE;Z8321734AD;SALDO Fatt.n. 09PU_PA2018  del 16/05/2018 CIG Z8321734AD;23/05/2018;1493;1;548;1;Spese correnti;3;Acquisto di beni e servizi;2;Acquisto di servizi;9;Manutenzione ordinaria e riparazioni;8;Manutenzione ordinaria e riparazioni di beni immobili;23/05/2018
777;4;0;2.970,00;2.969,99;AS.TR.E.D. COOP. SOCIALE;Z8321734AD;SALDO Fatt.n. 10PU_PA2018  del 21/05/2018 CIG Z8321734AD;23/05/2018;1493;1;548;1;Spese correnti;3;Acquisto di beni e servizi;2;Acquisto di servizi;9;Manutenzione ordinaria e riparazioni;8;Manutenzione ordinaria e riparazioni di beni immobili;23/05/2018
778;1;0;3.842,87;3.842,87;MELONI CRISTIANA;ZF42139F05;SALDO Fatt.n. FATTPA 2_18  del 08/05/2018;23/05/2018;225;3;503;1;Spese correnti;3;Acquisto di beni e servizi;2;Acquisto di servizi;11;Prestazioni professionali e specialistiche;999;Altre prestazioni professionali e specialistiche n.a.c.;23/05/2018
785;1;0;169,88;169,88;ANCI SARDEGNA; ;ADDIZIONALE REGIONALE QUOTA ASSOCIATIVA IN FAVORE DELL' ANCI SARDEGNA. ANNO 2018. LIQUIDAZIONE DI SPESA.;01/06/2018;134;1;196;1;Spese correnti;3;Acquisto di beni e servizi;2;Acquisto di servizi;99;Altri servizi;3;Quote di associazioni;01/06/2018
786;1;0;130;130;ANUSCA; ;"LIQUIDAZIONE DI SPESA PER QUOTA ASSOCIATIVA, QUOTA ""A"" ALL' ANUSCA. ANNO 2018 -";01/06/2018;134;1;195;1;Spese correnti;3;Acquisto di beni e servizi;2;Acquisto di servizi;99;Altri servizi;3;Quote di associazioni;01/06/2018
787;1;0;201,2;201,2;A.S.E.L; ;LIQUIDAZIONE DI SPESA PER QUOTA ASSOCIATIVA ALL' ASEL SARDEGNA - ANNO 2018-;01/06/2018;134;1;194;1;Spese correnti;3;Acquisto di beni e servizi;2;Acquisto di servizi;99;Altri servizi;3;Quote di associazioni;01/06/2018
788;1;0;202;202;CENTRO STUDI E RICERCHE SULLE AUTONOMIE LOCALI; ;LIQUIDAZIONE DI SPESA PER QUOTA ASSOCIATIVA AL CENTRO STUDI E RICERCHE SULLE AUTONOMIE LOCALI - SAVONA - ANNO 2018.;01/06/2018;134;1;192;1;Spese correnti;3;Acquisto di beni e servizi;2;Acquisto di servizi;99;Altri servizi;3;Quote di associazioni;01/06/2018
789;1;0;3.197,01;3.197,01;COMUNE DI SENORBI'; ;ART.3 L. 28.02.1987, N. 56 - RIPARTO SPESE SEZIONE CIRCOSCRIZIONALE DEL LAVORO E DELLA MASSIMA OCCUPAZIONE DI SENORBI' (CA) - LIQUIDAZIONE DI SPESA PER QUOTA A CARICO DEL COMUNE DI SANT' ANDREA FRIUS - ANNO 2017.;01/06/2018;338;1;312;1;Spese correnti;3;Acquisto di beni e servizi;2;Acquisto di servizi;7;Utilizzo di beni di terzi;999;Altre spese sostenute per utilizzo di beni di terzi n.a.c.;01/06/2018
791;1;0;9,27;3.024,09;ENEL ENERGIA SPA;7429682F87;SALDO Fatt.n. 004810877984  del 24/05/2018;06/06/2018;1015;1;392;1;Spese correnti;3;Acquisto di beni e servizi;2;Acquisto di servizi;5;Utenze e canoni;4;Energia elettrica;06/06/2018
791;2;0;45,92;3.024,09;ENEL ENERGIA SPA;7429682F87;SALDO Fatt.n. 004810877978  del 24/05/2018;06/06/2018;1015;1;392;1;Spese correnti;3;Acquisto di beni e servizi;2;Acquisto di servizi;5;Utenze e canoni;4;Energia elettrica;06/06/2018
791;3;0;99,97;3.024,09;ENEL ENERGIA SPA;7429682F87;SALDO Fatt.n. 004810877968  del 24/05/2018;06/06/2018;1015;1;392;1;Spese correnti;3;Acquisto di beni e servizi;2;Acquisto di servizi;5;Utenze e canoni;4;Energia elettrica;06/06/2018
791;4;0;165,98;3.024,09;ENEL ENERGIA SPA;7429682F87;SALDO Fatt.n. 004810877963  del 24/05/2018;06/06/2018;1015;1;392;1;Spese correnti;3;Acquisto di beni e servizi;2;Acquisto di servizi;5;Utenze e canoni;4;Energia elettrica;06/06/2018
791;5;0;191,88;3.024,09;ENEL ENERGIA SPA;7429682F87;SALDO Fatt.n. 004810877971  del 24/05/2018;06/06/2018;1015;1;392;1;Spese correnti;3;Acquisto di beni e servizi;2;Acquisto di servizi;5;Utenze e canoni;4;Energia elettrica;06/06/2018
791;6;0;199,86;3.024,09;ENEL ENERGIA SPA;7429682F87;SALDO Fatt.n. 004810877980  del 24/05/2018;06/06/2018;1015;1;392;1;Spese correnti;3;Acquisto di beni e servizi;2;Acquisto di servizi;5;Utenze e canoni;4;Energia elettrica;06/06/2018
791;7;0;262,06;3.024,09;ENEL ENERGIA SPA;7429682F87;SALDO Fatt.n. 004810877967  del 24/05/2018;06/06/2018;1015;1;392;1;Spese correnti;3;Acquisto di beni e servizi;2;Acquisto di servizi;5;Utenze e canoni;4;Energia elettrica;06/06/2018
791;8;0;311,64;3.024,09;ENEL ENERGIA SPA;7429682F87;SALDO Fatt.n. 004810877979  del 24/05/2018;06/06/2018;1015;1;392;1;Spese correnti;3;Acquisto di beni e servizi;2;Acquisto di servizi;5;Utenze e canoni;4;Energia elettrica;06/06/2018
791;9;0;403;3.024,09;ENEL ENERGIA SPA;7429682F87;SALDO Fatt.n. 004810877982  del 24/05/2018;06/06/2018;1015;1;392;1;Spese correnti;3;Acquisto di beni e servizi;2;Acquisto di servizi;5;Utenze e canoni;4;Energia elettrica;06/06/2018
791;10;0;472,63;3.024,09;ENEL ENERGIA SPA;7429682F87;SALDO Fatt.n. 004810877969  del 24/05/2018;06/06/2018;1015;1;392;1;Spese correnti;3;Acquisto di beni e servizi;2;Acquisto di servizi;5;Utenze e canoni;4;Energia elettrica;06/06/2018
791;11;0;861,88;3.024,09;ENEL ENERGIA SPA;7429682F87;SALDO Fatt.n. 004810877959  del 24/05/2018;06/06/2018;1015;1;392;1;Spese correnti;3;Acquisto di beni e servizi;2;Acquisto di servizi;5;Utenze e canoni;4;Energia elettrica;06/06/2018
792;1;0;22,52;112,84;ENEL ENERGIA SPA;7429682F87;SALDO Fatt.n. 004810877961  del 24/05/2018;06/06/2018;1090;1;393;1;Spese correnti;3;Acquisto di beni e servizi;2;Acquisto di servizi;5;Utenze e canoni;4;Energia elettrica;06/06/2018
792;2;0;22,52;112,84;ENEL ENERGIA SPA;7429682F87;SALDO Fatt.n. 004810877966  del 24/05/2018;06/06/2018;1090;1;393;1;Spese correnti;3;Acquisto di beni e servizi;2;Acquisto di servizi;5;Utenze e canoni;4;Energia elettrica;06/06/2018
792;3;0;23,86;112,84;ENEL ENERGIA SPA;7429682F87;SALDO Fatt.n. 004810877987  del 24/05/2018;06/06/2018;1090;1;393;1;Spese correnti;3;Acquisto di beni e servizi;2;Acquisto di servizi;5;Utenze e canoni;4;Energia elettrica;06/06/2018
792;4;0;43,94;112,84;ENEL ENERGIA SPA;7429682F87;SALDO Fatt.n. 004810877990  del 24/05/2018;06/06/2018;1090;1;393;1;Spese correnti;3;Acquisto di beni e servizi;2;Acquisto di servizi;5;Utenze e canoni;4;Energia elettrica;06/06/2018
793;1;0;22,52;75,1;ENEL ENERGIA SPA;7429682F87;SALDO Fatt.n. 004810877977  del 24/05/2018;06/06/2018;1302;2;394;1;Spese correnti;3;Acquisto di beni e servizi;2;Acquisto di servizi;5;Utenze e canoni;4;Energia elettrica;06/06/2018
793;2;0;52,58;75,1;ENEL ENERGIA SPA;7429682F87;SALDO Fatt.n. 004810877986  del 24/05/2018;06/06/2018;1302;2;394;1;Spese correnti;3;Acquisto di beni e servizi;2;Acquisto di servizi;5;Utenze e canoni;4;Energia elettrica;06/06/2018
794;1;0;166,04;166,04;ENEL ENERGIA SPA;7429682F87;SALDO Fatt.n. 004810877974  del 24/05/2018;06/06/2018;716;4;395;1;Spese correnti;3;Acquisto di beni e servizi;2;Acquisto di servizi;5;Utenze e canoni;4;Energia elettrica;06/06/2018
795;1;0;227,65;227,65;ENEL ENERGIA SPA;7429682F87;SALDO Fatt.n. 004810877975  del 24/05/2018;06/06/2018;618;4;396;1;Spese correnti;3;Acquisto di beni e servizi;2;Acquisto di servizi;5;Utenze e canoni;4;Energia elettrica;06/06/2018
796;1;0;30;509,09;ENEL ENERGIA SPA;7429682F87;SALDO Fatt.n. 004810877973  del 24/05/2018;06/06/2018;118;4;397;1;Spese correnti;3;Acquisto di beni e servizi;2;Acquisto di servizi;5;Utenze e canoni;4;Energia elettrica;06/06/2018
796;2;0;72,81;509,09;ENEL ENERGIA SPA;7429682F87;SALDO Fatt.n. 004810877964  del 24/05/2018;06/06/2018;118;4;397;1;Spese correnti;3;Acquisto di beni e servizi;2;Acquisto di servizi;5;Utenze e canoni;4;Energia elettrica;06/06/2018
796;3;0;406,28;509,09;ENEL ENERGIA SPA;7429682F87;SALDO Fatt.n. 004810877981  del 24/05/2018;06/06/2018;118;4;397;1;Spese correnti;3;Acquisto di beni e servizi;2;Acquisto di servizi;5;Utenze e canoni;4;Energia elettrica;06/06/2018
797;1;0;135,58;135,58;ENEL ENERGIA SPA;7429682F87;SALDO Fatt.n. 004810877965  del 24/05/2018;06/06/2018;592;4;402;1;Spese correnti;3;Acquisto di beni e servizi;2;Acquisto di servizi;5;Utenze e canoni;4;Energia elettrica;06/06/2018
798;1;0;108,23;108,23;ENEL ENERGIA SPA;7429682F87;SALDO Fatt.n. 004810877988  del 24/05/2018;06/06/2018;1340;4;403;1;Spese correnti;3;Acquisto di beni e servizi;2;Acquisto di servizi;5;Utenze e canoni;4;Energia elettrica;06/06/2018
799;1;0;23,36;23,36;ENEL ENERGIA SPA;7429682F87;SALDO Fatt.n. 004810877989  del 24/05/2018;06/06/2018;1486;1;404;1;Spese correnti;3;Acquisto di beni e servizi;2;Acquisto di servizi;5;Utenze e canoni;4;Energia elettrica;06/06/2018
800;1;0;272,02;558,23;ENEL ENERGIA SPA;7429682F87;SALDO Fatt.n. 004810877972  del 24/05/2018;06/06/2018;820;1;405;1;Spese correnti;3;Acquisto di beni e servizi;2;Acquisto di servizi;5;Utenze e canoni;4;Energia elettrica;06/06/2018
800;2;0;286,21;558,23;ENEL ENERGIA SPA;7429682F87;SALDO Fatt.n. 004810877960  del 24/05/2018;06/06/2018;820;1;405;1;Spese correnti;3;Acquisto di beni e servizi;2;Acquisto di servizi;5;Utenze e canoni;4;Energia elettrica;06/06/2018
801;1;0;69,58;69,58;POSTE ITALIANE spa;Z4A1F1447A;SALDO Fatt.n. 8718190015  del 05/06/2018 Fattura Elettronica relativa all'Identificativo Rendiconto 2097490034;07/06/2018;118;7;228;1;Spese correnti;3;Acquisto di beni e servizi;2;Acquisto di servizi;16;Servizi amministrativi;2;Spese postali;07/06/2018
802;1;0;568,52;568,52;A.TEC. sas;ZB6237B00D;SALDO Fatt.n. FATTPA 22_18  del 24/05/2018;07/06/2018;100;1;180;1;Spese correnti;3;Acquisto di beni e servizi;2;Acquisto di servizi;9;Manutenzione ordinaria e riparazioni;4;Manutenzione ordinaria e riparazioni di impianti e macchinari;07/06/2018
803;1;0;81,31;81,31;KUWAIT PETROLEUM ITALIA SPA;Z621D28DB4;SALDO Fatt.n. PJ00138098  del 31/05/2018;07/06/2018;208;8;508;1;Spese correnti;3;Acquisto di beni e servizi;1;Acquisto di beni;2;Altri beni di consumo;2;Carburanti, combustibili e lubrificanti;07/06/2018
804;1;0;314,4;314,4;OMESSO NOMINATIVO NEL RISPETTO DELLA NORMATIVA SULLA PROTEZIONE DATI PERSONALI; ;"Legge regionale n. 4 dell'11/05/2006, art. 17, comma 1. Finanziamento per il programma sperimentale ""Ritornare a casa"". LIQUIDAZIONE di spesa in favore di un beneficiario. Gennaio - giugno 2018.";12/06/2018;1448;5;84;1;Spese correnti;4;Trasferimenti correnti;2;Trasferimenti correnti a Famiglie;2;Interventi assistenziali;999;Altri assegni e sussidi assistenziali;12/06/2018
805;1;0;1.257,60;1.257,60;OMESSO NOMINATIVO NEL RISPETTO DELLA NORMATIVA SULLA PROTEZIONE DATI PERSONALI; ;PROGETTO RITORNARE A CASA MESE MAGGIO 2018;12/06/2018;1448;1;969;1;Spese correnti;4;Trasferimenti correnti;2;Trasferimenti correnti a Famiglie;2;Interventi assistenziali;999;Altri assegni e sussidi assistenziali;12/06/2018
806;1;0;488;488;SCHINDLER;ZBB1EC3557;SALDO Fatt.n. 349303262  del 24/05/2018 Canone di manutenzione per impianti elevatori;12/06/2018;218;1;189;1;Spese correnti;3;Acquisto di beni e servizi;2;Acquisto di servizi;9;Manutenzione ordinaria e riparazioni;4;Manutenzione ordinaria e riparazioni di impianti e macchinari;12/06/2018
807;1;0;1.051,47;1.051,47;ITALTEC SRL;Z1613193BA;ACCONTO Fatt.n. 42/PA  del 01/06/2018 1Semestre 2018;12/06/2018;100;1;495;1;Spese correnti;3;Acquisto di beni e servizi;2;Acquisto di servizi;9;Manutenzione ordinaria e riparazioni;4;Manutenzione ordinaria e riparazioni di impianti e macchinari;12/06/2018
808;1;0;741,93;741,93;ITALTEC SRL;Z1613193BA;SALDO Fatt.n. 42/PA  del 01/06/2018 1Semestre 2018;12/06/2018;100;1;495;1;Spese correnti;3;Acquisto di beni e servizi;2;Acquisto di servizi;9;Manutenzione ordinaria e riparazioni;4;Manutenzione ordinaria e riparazioni di impianti e macchinari;12/06/2018
809;1;0;2.969,99;2.969,99;AS.TR.E.D. COOP. SOCIALE;Z8321734AD;SALDO Fatt.n. 11PU_PA2018  del 31/05/2018 CIG Z8321734AD;12/06/2018;230;1;186;1;Spese correnti;3;Acquisto di beni e servizi;2;Acquisto di servizi;13;Servizi ausiliari per il funzionamento dell'ente;2;Servizi di pulizia e lavanderia;12/06/2018
810;1;0;1.305,58;1.305,58;COSMAT SRL;ZE12180C39;SALDO Fatt.n. 5PA  del 29/05/2018 CIG: ZE12180C39;12/06/2018;3264;1;549;2;Spese in conto capitale;2;Investimenti fissi lordi e acquisto di terreni;1;Beni materiali;9;Beni immobili;12;Infrastrutture stradali;12/06/2018
811;1;0;125;125;OMESSO NOMINATIVO NEL RISPETTO DELLA NORMATIVA SULLA PROTEZIONE DATI PERSONALI; ;L. 162/98. Piani personalizzati di sostegno in favore di persone con handicap grave. Proroga  - aprile 2018.Liquidazione di spesa in favore di n. 46 beneficiari.;12/06/2018;1429;1;65;1;Spese correnti;4;Trasferimenti correnti;2;Trasferimenti correnti a Famiglie;2;Interventi assistenziali;999;Altri assegni e sussidi assistenziali;12/06/2018
812;1;0;115,16;115,16;OMESSO NOMINATIVO NEL RISPETTO DELLA NORMATIVA SULLA PROTEZIONE DATI PERSONALI; ;L. 162/98. Piani personalizzati di sostegno in favore di persone con handicap grave. Finanziamento maggio - dicembre 2018. liquidazione di spesa.;12/06/2018;1429;1;179;1;Spese correnti;4;Trasferimenti correnti;2;Trasferimenti correnti a Famiglie;2;Interventi assistenziali;999;Altri assegni e sussidi assistenziali;12/06/2018
813;1;0;146,84;146,84;OMESSO NOMINATIVO NEL RISPETTO DELLA NORMATIVA SULLA PROTEZIONE DATI PERSONALI; ;L. 162/98. Piani personalizzati di sostegno in favore di persone con handicap grave. Proroga gennaio - aprile 2018. liquidazione di spesa in favore di n. 46 beneficiari.;12/06/2018;1429;1;65;1;Spese correnti;4;Trasferimenti correnti;2;Trasferimenti correnti a Famiglie;2;Interventi assistenziali;999;Altri assegni e sussidi assistenziali;12/06/2018
814;1;0;107,16;107,16;OMESSO NOMINATIVO NEL RISPETTO DELLA NORMATIVA SULLA PROTEZIONE DATI PERSONALI; ;L. 162/98. Piani personalizzati di sostegno in favore di persone con handicap grave. Finanziamento maggio - dicembre 2018.liquidazione di spesa.;12/06/2018;1429;1;179;1;Spese correnti;4;Trasferimenti correnti;2;Trasferimenti correnti a Famiglie;2;Interventi assistenziali;999;Altri assegni e sussidi assistenziali;12/06/2018
815;1;0;201,42;201,42;OMESSO NOMINATIVO NEL RISPETTO DELLA NORMATIVA SULLA PROTEZIONE DATI PERSONALI; ;L. 162/98. Piani personalizzati di sostegno in favore di persone con handicap grave. Finanziamento maggio  2018.liquidazione di spesa.;12/06/2018;1429;1;179;1;Spese correnti;4;Trasferimenti correnti;2;Trasferimenti correnti a Famiglie;2;Interventi assistenziali;999;Altri assegni e sussidi assistenziali;12/06/2018
816;1;0;220;220;OMESSO NOMINATIVO NEL RISPETTO DELLA NORMATIVA SULLA PROTEZIONE DATI PERSONALI; ;L. 162/98. Piani personalizzati di sostegno in favore di persone con handicap grave. Finanziamento maggio - dicembre 2018. liquidazione di spesa.;12/06/2018;1429;1;179;1;Spese correnti;4;Trasferimenti correnti;2;Trasferimenti correnti a Famiglie;2;Interventi assistenziali;999;Altri assegni e sussidi assistenziali;12/06/2018
817;1;0;200;200;OMESSO NOMINATIVO NEL RISPETTO DELLA NORMATIVA SULLA PROTEZIONE DATI PERSONALI; ;L. 162/98. Piani personalizzati di sostegno in favore di persone con handicap grave. Finanziamento maggio - dicembre 2018. liquidazione di spesa.;12/06/2018;1429;1;179;1;Spese correnti;4;Trasferimenti correnti;2;Trasferimenti correnti a Famiglie;2;Interventi assistenziali;999;Altri assegni e sussidi assistenziali;12/06/2018
818;1;0;386,1;386,1;OMESSO NOMINATIVO NEL RISPETTO DELLA NORMATIVA SULLA PROTEZIONE DATI PERSONALI; ;L. 162/98. Piani personalizzati di sostegno in favore di persone con handicap grave. Finanziamento maggio - dicembre 2018.liquidazione di spesa.;12/06/2018;1429;1;179;1;Spese correnti;4;Trasferimenti correnti;2;Trasferimenti correnti a Famiglie;2;Interventi assistenziali;999;Altri assegni e sussidi assistenziali;12/06/2018
819;1;0;101,5;101,5;OMESSO NOMINATIVO NEL RISPETTO DELLA NORMATIVA SULLA PROTEZIONE DATI PERSONALI; ;L. 162/98. Piani personalizzati di sostegno in favore di persone con handicap grave. Finanziamento maggio - 2018. liquidazione di spesa.;12/06/2018;1429;1;179;1;Spese correnti;4;Trasferimenti correnti;2;Trasferimenti correnti a Famiglie;2;Interventi assistenziali;999;Altri assegni e sussidi assistenziali;12/06/2018
820;1;0;138,41;138,41;OMESSO NOMINATIVO NEL RISPETTO DELLA NORMATIVA SULLA PROTEZIONE DATI PERSONALI; ;L. 162/98. Piani personalizzati di sostegno in favore di persone con handicap grave. Finanziamento maggio - dicembre 2018. liquidazione di spesa.;12/06/2018;1429;1;179;1;Spese correnti;4;Trasferimenti correnti;2;Trasferimenti correnti a Famiglie;2;Interventi assistenziali;999;Altri assegni e sussidi assistenziali;12/06/2018
821;1;0;138,63;138,63;OMESSO NOMINATIVO NEL RISPETTO DELLA NORMATIVA SULLA PROTEZIONE DATI PERSONALI; ;L. 162/98. Piani personalizzati di sostegno in favore di persone con handicap grave. Finanziamento maggio - dicembre 2018.liquidazione di spesa.;12/06/2018;1429;1;179;1;Spese correnti;4;Trasferimenti correnti;2;Trasferimenti correnti a Famiglie;2;Interventi assistenziali;999;Altri assegni e sussidi assistenziali;12/06/2018
822;1;0;911,18;911,18;OMESSO NOMINATIVO NEL RISPETTO DELLA NORMATIVA SULLA PROTEZIONE DATI PERSONALI; ;L. 162/98. Piani personalizzati di sostegno in favore di persone con handicap grave. Finanziamento maggio -  2018. liquidazione di spesa.;12/06/2018;1429;1;179;1;Spese correnti;4;Trasferimenti correnti;2;Trasferimenti correnti a Famiglie;2;Interventi assistenziali;999;Altri assegni e sussidi assistenziali;12/06/2018
823;1;0;124,99;124,99;OMESSO NOMINATIVO NEL RISPETTO DELLA NORMATIVA SULLA PROTEZIONE DATI PERSONALI; ;L. 162/98. Piani personalizzati di sostegno in favore di persone con handicap grave. Finanziamento maggio - 2018. liquidazione di spesa.;12/06/2018;1429;1;179;1;Spese correnti;4;Trasferimenti correnti;2;Trasferimenti correnti a Famiglie;2;Interventi assistenziali;999;Altri assegni e sussidi assistenziali;12/06/2018
824;1;0;146,66;146,66;OMESSO NOMINATIVO NEL RISPETTO DELLA NORMATIVA SULLA PROTEZIONE DATI PERSONALI; ;L. 162/98. Piani personalizzati di sostegno in favore di persone con handicap grave. Finanziamento maggio - dicembre 2018. liquidazione di spesa.;12/06/2018;1429;1;179;1;Spese correnti;4;Trasferimenti correnti;2;Trasferimenti correnti a Famiglie;2;Interventi assistenziali;999;Altri assegni e sussidi assistenziali;12/06/2018
825;1;0;317,84;317,84;OMESSO NOMINATIVO NEL RISPETTO DELLA NORMATIVA SULLA PROTEZIONE DATI PERSONALI; ;L. 162/98. Piani personalizzati di sostegno in favore di persone con handicap grave. Finanziamento maggio - 2018. liquidaziione di spesa.;12/06/2018;1429;1;179;1;Spese correnti;4;Trasferimenti correnti;2;Trasferimenti correnti a Famiglie;2;Interventi assistenziali;999;Altri assegni e sussidi assistenziali;12/06/2018
826;1;0;329,62;329,62;OMESSO NOMINATIVO NEL RISPETTO DELLA NORMATIVA SULLA PROTEZIONE DATI PERSONALI; ;L. 162/98. Piani personalizzati di sostegno in favore di persone con handicap grave. Finanziamento maggio - dicembre 2018. liquidazione di spesa.;12/06/2018;1429;1;179;1;Spese correnti;4;Trasferimenti correnti;2;Trasferimenti correnti a Famiglie;2;Interventi assistenziali;999;Altri assegni e sussidi assistenziali;12/06/2018
827;1;0;935;935;OMESSO NOMINATIVO NEL RISPETTO DELLA NORMATIVA SULLA PROTEZIONE DATI PERSONALI; ;L. 162/98. Piani personalizzati di sostegno in favore di persone con handicap grave. Finanziamento maggio - dicembre 2018.liquidazione di spesa.;12/06/2018;1429;1;179;1;Spese correnti;4;Trasferimenti correnti;2;Trasferimenti correnti a Famiglie;2;Interventi assistenziali;999;Altri assegni e sussidi assistenziali;12/06/2018
828;1;0;338,22;338,22;OMESSO NOMINATIVO NEL RISPETTO DELLA NORMATIVA SULLA PROTEZIONE DATI PERSONALI; ;L. 162/98. Piani personalizzati di sostegno in favore di persone con handicap grave. Finanziamento maggio - dicembre 2018.liquidazione di spesa.;12/06/2018;1429;1;179;1;Spese correnti;4;Trasferimenti correnti;2;Trasferimenti correnti a Famiglie;2;Interventi assistenziali;999;Altri assegni e sussidi assistenziali;12/06/2018
829;1;0;204,67;204,67;OMESSO NOMINATIVO NEL RISPETTO DELLA NORMATIVA SULLA PROTEZIONE DATI PERSONALI; ;L. 162/98. Piani personalizzati di sostegno in favore di persone con handicap grave. Finanziamento maggio -;12/06/2018;1429;1;179;1;Spese correnti;4;Trasferimenti correnti;2;Trasferimenti correnti a Famiglie;2;Interventi assistenziali;999;Altri assegni e sussidi assistenziali;12/06/2018
830;1;0;840,34;840,34;OMESSO NOMINATIVO NEL RISPETTO DELLA NORMATIVA SULLA PROTEZIONE DATI PERSONALI; ;L. 162/98. Piani personalizzati di sostegno in favore di persone con handicap grave. Finanziamento maggio -  2018. liquidazione di spesa.;12/06/2018;1429;1;179;1;Spese correnti;4;Trasferimenti correnti;2;Trasferimenti correnti a Famiglie;2;Interventi assistenziali;999;Altri assegni e sussidi assistenziali;12/06/2018
831;1;0;830,21;830,21;OMESSO NOMINATIVO NEL RISPETTO DELLA NORMATIVA SULLA PROTEZIONE DATI PERSONALI; ;L. 162/98. Piani personalizzati di sostegno in favore di persone con handicap grave. Finanziamento maggio - 2018. liquidazione di spesa.;12/06/2018;1429;1;179;1;Spese correnti;4;Trasferimenti correnti;2;Trasferimenti correnti a Famiglie;2;Interventi assistenziali;999;Altri assegni e sussidi assistenziali;12/06/2018
832;1;0;696;696;OMESSO NOMINATIVO NEL RISPETTO DELLA NORMATIVA SULLA PROTEZIONE DATI PERSONALI; ;L. 162/98. Piani personalizzati di sostegno in favore di persone con handicap grave. Finanziamento maggio -  2018. liquidazione di spesa.;12/06/2018;1429;1;179;1;Spese correnti;4;Trasferimenti correnti;2;Trasferimenti correnti a Famiglie;2;Interventi assistenziali;999;Altri assegni e sussidi assistenziali;12/06/2018
833;1;0;120;120;OMESSO NOMINATIVO NEL RISPETTO DELLA NORMATIVA SULLA PROTEZIONE DATI PERSONALI; ;L. 162/98. Piani personalizzati di sostegno in favore di persone con handicap grave. Finanziamento maggio - dicembre 2018. liquidazione di spesa.;12/06/2018;1429;1;179;1;Spese correnti;4;Trasferimenti correnti;2;Trasferimenti correnti a Famiglie;2;Interventi assistenziali;999;Altri assegni e sussidi assistenziali;12/06/2018
834;1;0;962;962;OMESSO NOMINATIVO NEL RISPETTO DELLA NORMATIVA SULLA PROTEZIONE DATI PERSONALI; ;ECONOMIA GESTIONE ANNO 2017 - Liquidazione  MAGGIO -  2018;12/06/2018;1429;1;605;1;Spese correnti;4;Trasferimenti correnti;2;Trasferimenti correnti a Famiglie;2;Interventi assistenziali;999;Altri assegni e sussidi assistenziali;12/06/2018
835;1;0;335,35;335,35;OMESSO NOMINATIVO NEL RISPETTO DELLA NORMATIVA SULLA PROTEZIONE DATI PERSONALI; ;L. 162/98. Piani personalizzati di sostegno in favore di persone con handicap grave. Finanziamento maggio -  2018. LIQUIDAZIONE di spesa.;12/06/2018;1429;1;179;1;Spese correnti;4;Trasferimenti correnti;2;Trasferimenti correnti a Famiglie;2;Interventi assistenziali;999;Altri assegni e sussidi assistenziali;12/06/2018
836;1;0;123,51;123,51;OMESSO NOMINATIVO NEL RISPETTO DELLA NORMATIVA SULLA PROTEZIONE DATI PERSONALI; ;L. 162/98. Piani personalizzati di sostegno in favore di persone con handicap grave. Finanziamento maggio -  2018. LIQUIDAZIONE di spesa.;12/06/2018;1429;1;179;1;Spese correnti;4;Trasferimenti correnti;2;Trasferimenti correnti a Famiglie;2;Interventi assistenziali;999;Altri assegni e sussidi assistenziali;12/06/2018
837;1;0;208,55;208,55;OMESSO NOMINATIVO NEL RISPETTO DELLA NORMATIVA SULLA PROTEZIONE DATI PERSONALI; ;L. 162/98. Piani personalizzati di sostegno in favore di persone con handicap grave. Finanziamento maggio - dicembre 2018. LIQUIDAZIONE di spesa.;12/06/2018;1429;1;179;1;Spese correnti;4;Trasferimenti correnti;2;Trasferimenti correnti a Famiglie;2;Interventi assistenziali;999;Altri assegni e sussidi assistenziali;12/06/2018
838;1;0;375;375;OMESSO NOMINATIVO NEL RISPETTO DELLA NORMATIVA SULLA PROTEZIONE DATI PERSONALI; ;L. 162/98. Piani personalizzati di sostegno in favore di persone con handicap grave. Finanziamento maggio -  2018. LIQUIDAZIONE di spesa.;12/06/2018;1429;1;179;1;Spese correnti;4;Trasferimenti correnti;2;Trasferimenti correnti a Famiglie;2;Interventi assistenziali;999;Altri assegni e sussidi assistenziali;12/06/2018
839;1;0;205;205;OMESSO NOMINATIVO NEL RISPETTO DELLA NORMATIVA SULLA PROTEZIONE DATI PERSONALI; ;L. 162/98. Piani personalizzati di sostegno in favore di persone con handicap grave. Finanziamento maggio - dicembre 2018. LIQUIDAZIONE di spesa.;12/06/2018;1429;1;179;1;Spese correnti;4;Trasferimenti correnti;2;Trasferimenti correnti a Famiglie;2;Interventi assistenziali;999;Altri assegni e sussidi assistenziali;12/06/2018
840;1;0;78;78;OMESSO NOMINATIVO NEL RISPETTO DELLA NORMATIVA SULLA PROTEZIONE DATI PERSONALI; ;L. 162/98. Piani personalizzati di sostegno in favore di persone con handicap grave. Finanziamento maggio - dicembre 2018. Liquidazione di spesa.;12/06/2018;1429;1;179;1;Spese correnti;4;Trasferimenti correnti;2;Trasferimenti correnti a Famiglie;2;Interventi assistenziali;999;Altri assegni e sussidi assistenziali;12/06/2018
841;1;0;878;878;OMESSO NOMINATIVO NEL RISPETTO DELLA NORMATIVA SULLA PROTEZIONE DATI PERSONALI; ;L. 162/98. Piani personalizzati di sostegno in favore di persone con handicap grave. Finanziamento maggio - dicembre 2018.LIQUIDAZIONE di spesa in favore di n. 52 beneficiari.;12/06/2018;1429;1;179;1;Spese correnti;4;Trasferimenti correnti;2;Trasferimenti correnti a Famiglie;2;Interventi assistenziali;999;Altri assegni e sussidi assistenziali;12/06/2018
842;1;0;258;258;OMESSO NOMINATIVO NEL RISPETTO DELLA NORMATIVA SULLA PROTEZIONE DATI PERSONALI; ;L. 162/98. Piani personalizzati di sostegno in favore di persone con handicap grave. Finanziamento maggio -  2018.LIQUIDAZIONE di spesa.;12/06/2018;1429;1;179;1;Spese correnti;4;Trasferimenti correnti;2;Trasferimenti correnti a Famiglie;2;Interventi assistenziali;999;Altri assegni e sussidi assistenziali;12/06/2018
843;1;0;156,66;156,66;OMESSO NOMINATIVO NEL RISPETTO DELLA NORMATIVA SULLA PROTEZIONE DATI PERSONALI; ;L. 162/98. Piani personalizzati di sostegno in favore di persone con handicap grave. Finanziamento maggio - 2018.LIQUIDAZIONE di spesa.;12/06/2018;1429;1;179;1;Spese correnti;4;Trasferimenti correnti;2;Trasferimenti correnti a Famiglie;2;Interventi assistenziali;999;Altri assegni e sussidi assistenziali;12/06/2018
844;1;0;507,3;507,3;OMESSO NOMINATIVO NEL RISPETTO DELLA NORMATIVA SULLA PROTEZIONE DATI PERSONALI; ;L. 162/98. Piani personalizzati di sostegno in favore di persone con handicap grave. Finanziamento maggio - dicembre 2018.LIQUIDAZIONE di spesa.;12/06/2018;1429;1;179;1;Spese correnti;4;Trasferimenti correnti;2;Trasferimenti correnti a Famiglie;2;Interventi assistenziali;999;Altri assegni e sussidi assistenziali;12/06/2018
892;1;0;200;200;OMESSO NOMINATIVO NEL RISPETTO DELLA NORMATIVA SULLA PROTEZIONE DATI PERSONALI; ;"Legge Regionale 2 agosto 2016, n 18. Fondo regionale per il reddito di inclusione sociale (REIS) ""Aggiudu torrau"". Annualita 2017.LIQUIDAZIONE di spesa.";15/06/2018;1440;3;526;1;Spese correnti;4;Trasferimenti correnti;2;Trasferimenti correnti a Famiglie;2;Interventi assistenziali;999;Altri assegni e sussidi assistenziali;15/06/2018
893;1;0;120;120;OMESSO NOMINATIVO NEL RISPETTO DELLA NORMATIVA SULLA PROTEZIONE DATI PERSONALI; ;"Legge Regionale 2 agosto 2016, n 18. Fondo regionale per il reddito di inclusione sociale (REIS) ""Aggiudu torrau"". Annualita 2017. LIQUIDAZIONE di spesa.";15/06/2018;1440;3;526;1;Spese correnti;4;Trasferimenti correnti;2;Trasferimenti correnti a Famiglie;2;Interventi assistenziali;999;Altri assegni e sussidi assistenziali;15/06/2018
894;1;0;120;120;OMESSO NOMINATIVO NEL RISPETTO DELLA NORMATIVA SULLA PROTEZIONE DATI PERSONALI; ;"Legge Regionale 2 agosto 2016, n 18. Fondo regionale per il reddito di inclusione sociale (REIS) ""Aggiudu torrau"". Annualita 2017. LIQUIDAZIONE di spesa.";15/06/2018;1440;3;526;1;Spese correnti;4;Trasferimenti correnti;2;Trasferimenti correnti a Famiglie;2;Interventi assistenziali;999;Altri assegni e sussidi assistenziali;15/06/2018
895;1;0;320;320;OMESSO NOMINATIVO NEL RISPETTO DELLA NORMATIVA SULLA PROTEZIONE DATI PERSONALI; ;"Legge Regionale 2 agosto 2016, n 18. Fondo regionale per il reddito di inclusione sociale (REIS) ""Aggiudu torrau"". Annualita 2017. LIQUIDAZIONE di spesa.";15/06/2018;1440;3;526;1;Spese correnti;4;Trasferimenti correnti;2;Trasferimenti correnti a Famiglie;2;Interventi assistenziali;999;Altri assegni e sussidi assistenziali;15/06/2018
896;1;0;320;320;OMESSO NOMINATIVO NEL RISPETTO DELLA NORMATIVA SULLA PROTEZIONE DATI PERSONALI; ;"Legge Regionale 2 agosto 2016, n 18. Fondo regionale per il reddito di inclusione sociale (REIS) ""Aggiudu torrau"". Annualita 2017. LIQUIDAZIONE di spesa.";15/06/2018;1440;3;526;1;Spese correnti;4;Trasferimenti correnti;2;Trasferimenti correnti a Famiglie;2;Interventi assistenziali;999;Altri assegni e sussidi assistenziali;15/06/2018
897;1;0;200;200;OMESSO NOMINATIVO NEL RISPETTO DELLA NORMATIVA SULLA PROTEZIONE DATI PERSONALI; ;"Legge Regionale 2 agosto 2016, n 18. Fondo regionale per il reddito di inclusione sociale (REIS) ""Aggiudu torrau"". Annualita 2017. LIQUIDAZIONE di spesa.";15/06/2018;1440;3;526;1;Spese correnti;4;Trasferimenti correnti;2;Trasferimenti correnti a Famiglie;2;Interventi assistenziali;999;Altri assegni e sussidi assistenziali;15/06/2018
898;1;0;120;120;OMESSO NOMINATIVO NEL RISPETTO DELLA NORMATIVA SULLA PROTEZIONE DATI PERSONALI; ;"Legge Regionale 2 agosto 2016, n 18. Fondo regionale per il reddito di inclusione sociale (REIS) ""Aggiudu torrau"". Annualita 2017.LIQUIDAZIONE di spesa.";15/06/2018;1440;3;526;1;Spese correnti;4;Trasferimenti correnti;2;Trasferimenti correnti a Famiglie;2;Interventi assistenziali;999;Altri assegni e sussidi assistenziali;15/06/2018
899;1;0;200;200;OMESSO NOMINATIVO NEL RISPETTO DELLA NORMATIVA SULLA PROTEZIONE DATI PERSONALI; ;"Legge Regionale 2 agosto 2016, n 18. Fondo regionale per il reddito di inclusione sociale (REIS) ""Aggiudu torrau"". Annualita 2017. LIQUIDAZIONE di spesa.";15/06/2018;1440;3;526;1;Spese correnti;4;Trasferimenti correnti;2;Trasferimenti correnti a Famiglie;2;Interventi assistenziali;999;Altri assegni e sussidi assistenziali;15/06/2018
900;1;0;1.000,00;1.000,00;OMESSO NOMINATIVO NEL RISPETTO DELLA NORMATIVA SULLA PROTEZIONE DATI PERSONALI; ;"Legge Regionale 2 agosto 2016, n 18. Fondo regionale per il reddito di inclusione sociale (REIS) ""Aggiudu torrau"". Annualita 2017.LIQUIDAZIONE di spesa.";15/06/2018;1440;3;526;1;Spese correnti;4;Trasferimenti correnti;2;Trasferimenti correnti a Famiglie;2;Interventi assistenziali;999;Altri assegni e sussidi assistenziali;15/06/2018
901;1;0;400;400;OMESSO NOMINATIVO NEL RISPETTO DELLA NORMATIVA SULLA PROTEZIONE DATI PERSONALI; ;"Legge Regionale 2 agosto 2016, n 18. Fondo regionale per il reddito di inclusione sociale (REIS) ""Aggiudu torrau"". Annualita 2017. LIQUIDAZIONE di spesa.";15/06/2018;1440;3;526;1;Spese correnti;4;Trasferimenti correnti;2;Trasferimenti correnti a Famiglie;2;Interventi assistenziali;999;Altri assegni e sussidi assistenziali;15/06/2018
902;1;0;600;600;OMESSO NOMINATIVO NEL RISPETTO DELLA NORMATIVA SULLA PROTEZIONE DATI PERSONALI; ;"Legge Regionale 2 agosto 2016, n 18. Fondo regionale per il reddito di inclusione sociale (REIS) ""Aggiudu torrau"". Annualita 2017. LIQUIDAZIONE di spesa.";15/06/2018;1440;3;526;1;Spese correnti;4;Trasferimenti correnti;2;Trasferimenti correnti a Famiglie;2;Interventi assistenziali;999;Altri assegni e sussidi assistenziali;15/06/2018
903;1;0;400;400;OMESSO NOMINATIVO NEL RISPETTO DELLA NORMATIVA SULLA PROTEZIONE DATI PERSONALI; ;"Legge Regionale 2 agosto 2016, n 18. Fondo regionale per il reddito di inclusione sociale (REIS) ""Aggiudu torrau"". Annualita 2017.LIQUIDAZIONE di spesa.";15/06/2018;1440;3;526;1;Spese correnti;4;Trasferimenti correnti;2;Trasferimenti correnti a Famiglie;2;Interventi assistenziali;999;Altri assegni e sussidi assistenziali;15/06/2018
904;1;0;400;400;OMESSO NOMINATIVO NEL RISPETTO DELLA NORMATIVA SULLA PROTEZIONE DATI PERSONALI; ;"Legge Regionale 2 agosto 2016, n 18. Fondo regionale per il reddito di inclusione sociale (REIS) ""Aggiudu torrau"". Annualita 2017. LIQUIDAZIONE di spesa.";15/06/2018;1440;3;526;1;Spese correnti;4;Trasferimenti correnti;2;Trasferimenti correnti a Famiglie;2;Interventi assistenziali;999;Altri assegni e sussidi assistenziali;15/06/2018
905;1;0;400;400;OMESSO NOMINATIVO NEL RISPETTO DELLA NORMATIVA SULLA PROTEZIONE DATI PERSONALI; ;"Legge Regionale 2 agosto 2016, n 18. Fondo regionale per il reddito di inclusione sociale (REIS) ""Aggiudu torrau"". Annualita 2017. LIQUIDAZIONE di spesa.";15/06/2018;1440;3;526;1;Spese correnti;4;Trasferimenti correnti;2;Trasferimenti correnti a Famiglie;2;Interventi assistenziali;999;Altri assegni e sussidi assistenziali;15/06/2018
906;1;0;1.000,00;1.000,00;OMESSO NOMINATIVO NEL RISPETTO DELLA NORMATIVA SULLA PROTEZIONE DATI PERSONALI; ;"Legge Regionale 2 agosto 2016, n 18. Fondo regionale per il reddito di inclusione sociale (REIS) ""Aggiudu torrau"". Annualita 2017. LIQUIDAZIONE di spesa.";15/06/2018;1440;3;526;1;Spese correnti;4;Trasferimenti correnti;2;Trasferimenti correnti a Famiglie;2;Interventi assistenziali;999;Altri assegni e sussidi assistenziali;15/06/2018
907;1;0;1.000,00;1.000,00;OMESSO NOMINATIVO NEL RISPETTO DELLA NORMATIVA SULLA PROTEZIONE DATI PERSONALI; ;"Legge Regionale 2 agosto 2016, n 18. Fondo regionale per il reddito di inclusione sociale (REIS) ""Aggiudu torrau"". Annualita 2017. LIQUIDAZIONE di spesa.";15/06/2018;1440;3;526;1;Spese correnti;4;Trasferimenti correnti;2;Trasferimenti correnti a Famiglie;2;Interventi assistenziali;999;Altri assegni e sussidi assistenziali;15/06/2018
908;1;0;800;800;OMESSO NOMINATIVO NEL RISPETTO DELLA NORMATIVA SULLA PROTEZIONE DATI PERSONALI; ;"Legge Regionale 2 agosto 2016, n 18. Fondo regionale per il reddito di inclusione sociale (REIS) ""Aggiudu torrau"". Annualita 2017. LIQUIDAZIONE di spesa.";15/06/2018;1440;3;526;1;Spese correnti;4;Trasferimenti correnti;2;Trasferimenti correnti a Famiglie;2;Interventi assistenziali;999;Altri assegni e sussidi assistenziali;15/06/2018
909;1;0;363,3;363,3;OMESSO NOMINATIVO NEL RISPETTO DELLA NORMATIVA SULLA PROTEZIONE DATI PERSONALI; ;Servizio di Assistenza Domiciliare per anziani e disabili. Liquidazione di spesa. Maggio 2018.;15/06/2018;1433;3;64;1;Spese correnti;4;Trasferimenti correnti;2;Trasferimenti correnti a Famiglie;2;Interventi assistenziali;999;Altri assegni e sussidi assistenziali;15/06/2018
910;1;0;53,56;53,56;OMESSO NOMINATIVO NEL RISPETTO DELLA NORMATIVA SULLA PROTEZIONE DATI PERSONALI; ;Servizio di Assistenza Domiciliare per anziani e disabili.lIQUIDAZIONE di spesa. Maggio 2018.;15/06/2018;1433;3;64;1;Spese correnti;4;Trasferimenti correnti;2;Trasferimenti correnti a Famiglie;2;Interventi assistenziali;999;Altri assegni e sussidi assistenziali;15/06/2018
914;1;0;717,7;717,7;CASSA DEPOSITI E PRESTITI S.P.A.; ;CDP008 0002124 06184 30062018 INTERESSI PASSIVI SU MUTUI 1 SEMESTRE 2018;18/06/2018;626;1;205;1;Spese correnti;7;Interessi passivi;5;Interessi su Mutui e altri finanziamenti a medio lungo termine;4;Interessi passivi su finanziamenti a medio lungo termine a Imprese;3;Interessi passivi a Cassa Depositi e Prestiti SPA su mutui e altri finanziamenti a medio lungo termine;18/06/2018
915;1;0;709,17;709,17;CASSA DEPOSITI E PRESTITI S.P.A.; ;CDP008 0002124 06184 30062018 INTERESSI PASSIVI SU MUTUI-  1A RATA;18/06/2018;626;2;206;1;Spese correnti;7;Interessi passivi;5;Interessi su Mutui e altri finanziamenti a medio lungo termine;4;Interessi passivi su finanziamenti a medio lungo termine a Imprese;3;Interessi passivi a Cassa Depositi e Prestiti SPA su mutui e altri finanziamenti a medio lungo termine;18/06/2018
916;1;0;1.600,01;1.600,01;CASSA DEPOSITI E PRESTITI S.P.A.; ;CDP008 0002124 06184 30062018 QUOTE INTERESSI RINEGOZIAZIONE  1 SEMESTRE 2018;18/06/2018;138;1;240;1;Spese correnti;7;Interessi passivi;5;Interessi su Mutui e altri finanziamenti a medio lungo termine;4;Interessi passivi su finanziamenti a medio lungo termine a Imprese;3;Interessi passivi a Cassa Depositi e Prestiti SPA su mutui e altri finanziamenti a medio lungo termine;18/06/2018
917;1;0;2.106,91;2.106,91;CASSA DEPOSITI E PRESTITI S.P.A.; ;CDP008 0002124 06184 30062018 INTERESSI PASSIVI SU MUTUI 1 SEMESTRE 2018;18/06/2018;836;1;207;1;Spese correnti;7;Interessi passivi;5;Interessi su Mutui e altri finanziamenti a medio lungo termine;4;Interessi passivi su finanziamenti a medio lungo termine a Imprese;3;Interessi passivi a Cassa Depositi e Prestiti SPA su mutui e altri finanziamenti a medio lungo termine;18/06/2018
918;1;0;722,5;722,5;IST. PER IL CREDITO SPORTIVO; ;INTERESSI PASSIVI SU MUTUI 1 SEMESTRE 2018;18/06/2018;836;3;208;1;Spese correnti;7;Interessi passivi;5;Interessi su Mutui e altri finanziamenti a medio lungo termine;1;Interessi passivi ad Amministrazioni Centrali su mutui e altri finanziamenti a medio lungo termine;12;Interessi passivi a enti centrali produttori di servizi assistenziali, ricreativi e culturali su mutui e altri finanziamenti a medio lungo termine;18/06/2018
956;1;0;1.301,48;1.301,48;DIVERSI DIPENDENTI; ;LIQUIDAZIONE DI SPESA PER LA CORRESPONSIONE DELL' INDENNITA' DI FUNZIONE MESE MAGGIO ANNO 2018;20/06/2018;14;1;6;1;Spese correnti;3;Acquisto di beni e servizi;2;Acquisto di servizi;1;Organi e incarichi istituzionali dell'amministrazione;1;Organi istituzionali dell'amministrazione - Indennità;20/06/2018
966;1;0;23,64;23,64;OMESSO NOMINATIVO NEL RISPETTO DELLA NORMATIVA SULLA PROTEZIONE DATI PERSONALI; ;A.S. 2016/2017 - Contributi per il diritto allo studio 2017 - Assegnazione borse di studio a sostegno delle spese sostenute dalle famiglie per l'istruzione - Scuola Primaria e Secondaria di I e II grado -Liquidazione di Spesa;20/06/2018;682;4;190;1;Spese correnti;4;Trasferimenti correnti;2;Trasferimenti correnti a Famiglie;5;Altri trasferimenti a famiglie;999;Altri trasferimenti a famiglie n.a.c.;20/06/2018
967;1;0;23,64;23,64;OMESSO NOMINATIVO NEL RISPETTO DELLA NORMATIVA SULLA PROTEZIONE DATI PERSONALI; ;A.S. 2016/2017 - Contributi per il diritto allo studio 2017 - Assegnazione borse di studio a sostegno delle spese sostenute dalle famiglie per l'istruzione - Scuola Primaria e Secondaria di I e II grado -Liquidazione di Spesa;20/06/2018;682;4;190;1;Spese correnti;4;Trasferimenti correnti;2;Trasferimenti correnti a Famiglie;5;Altri trasferimenti a famiglie;999;Altri trasferimenti a famiglie n.a.c.;20/06/2018
968;1;0;23,64;23,64;OMESSO NOMINATIVO NEL RISPETTO DELLA NORMATIVA SULLA PROTEZIONE DATI PERSONALI; ;A.S. 2016/2017 - Contributi per il diritto allo studio 2017 - Assegnazione borse di studio a sostegno delle spese sostenute dalle famiglie per l'istruzione - Scuola Primaria e Secondaria di I e II grado -Liquidazione di Spesa;20/06/2018;682;4;190;1;Spese correnti;4;Trasferimenti correnti;2;Trasferimenti correnti a Famiglie;5;Altri trasferimenti a famiglie;999;Altri trasferimenti a famiglie n.a.c.;20/06/2018
969;1;0;23,64;23,64;OMESSO NOMINATIVO NEL RISPETTO DELLA NORMATIVA SULLA PROTEZIONE DATI PERSONALI; ;A.S. 2016/2017 - Contributi per il diritto allo studio 2017 - Assegnazione borse di studio a sostegno delle spese sostenute dalle famiglie per l'istruzione - Scuola Primaria e Secondaria di I e II grado -Liquidazione di Spesa;20/06/2018;682;4;190;1;Spese correnti;4;Trasferimenti correnti;2;Trasferimenti correnti a Famiglie;5;Altri trasferimenti a famiglie;999;Altri trasferimenti a famiglie n.a.c.;20/06/2018
970;1;0;23,64;23,64;OMESSO NOMINATIVO NEL RISPETTO DELLA NORMATIVA SULLA PROTEZIONE DATI PERSONALI; ;A.S. 2016/2017 - Contributi per il diritto allo studio 2017 - Assegnazione borse di studio a sostegno delle spese sostenute dalle famiglie per l'istruzione - Scuola Primaria e Secondaria di I e II grado -Liquidazione di Spesa;20/06/2018;682;4;190;1;Spese correnti;4;Trasferimenti correnti;2;Trasferimenti correnti a Famiglie;5;Altri trasferimenti a famiglie;999;Altri trasferimenti a famiglie n.a.c.;20/06/2018
971;1;0;23,64;23,64;OMESSO NOMINATIVO NEL RISPETTO DELLA NORMATIVA SULLA PROTEZIONE DATI PERSONALI; ;A.S. 2016/2017 - Contributi per il diritto allo studio 2017 - Assegnazione borse di studio a sostegno delle spese sostenute dalle famiglie per l'istruzione - Scuola Primaria e Secondaria di I e II grado -Liquidazione di Spesa;20/06/2018;682;4;190;1;Spese correnti;4;Trasferimenti correnti;2;Trasferimenti correnti a Famiglie;5;Altri trasferimenti a famiglie;999;Altri trasferimenti a famiglie n.a.c.;20/06/2018
972;1;0;23,64;23,64;OMESSO NOMINATIVO NEL RISPETTO DELLA NORMATIVA SULLA PROTEZIONE DATI PERSONALI; ;A.S. 2016/2017 - Contributi per il diritto allo studio 2017 - Assegnazione borse di studio a sostegno delle spese sostenute dalle famiglie per l'istruzione - Scuola Primaria e Secondaria di I e II grado -Liquidazione di Spesa;20/06/2018;682;4;190;1;Spese correnti;4;Trasferimenti correnti;2;Trasferimenti correnti a Famiglie;5;Altri trasferimenti a famiglie;999;Altri trasferimenti a famiglie n.a.c.;20/06/2018
973;1;0;23,64;23,64;OMESSO NOMINATIVO NEL RISPETTO DELLA NORMATIVA SULLA PROTEZIONE DATI PERSONALI; ;A.S. 2016/2017 - Contributi per il diritto allo studio 2017 - Assegnazione borse di studio a sostegno delle spese sostenute dalle famiglie per l'istruzione - Scuola Primaria e Secondaria di I e II grado -Liquidazione di Spesa;20/06/2018;682;4;190;1;Spese correnti;4;Trasferimenti correnti;2;Trasferimenti correnti a Famiglie;5;Altri trasferimenti a famiglie;999;Altri trasferimenti a famiglie n.a.c.;20/06/2018
974;1;0;23,64;23,64;OMESSO NOMINATIVO NEL RISPETTO DELLA NORMATIVA SULLA PROTEZIONE DATI PERSONALI; ;A.S. 2016/2017 - Contributi per il diritto allo studio 2017 - Assegnazione borse di studio a sostegno delle spese sostenute dalle famiglie per l'istruzione - Scuola Primaria e Secondaria di I e II grado -Liquidazione di Spesa;20/06/2018;682;4;190;1;Spese correnti;4;Trasferimenti correnti;2;Trasferimenti correnti a Famiglie;5;Altri trasferimenti a famiglie;999;Altri trasferimenti a famiglie n.a.c.;20/06/2018
975;1;0;23,64;23,64;OMESSO NOMINATIVO NEL RISPETTO DELLA NORMATIVA SULLA PROTEZIONE DATI PERSONALI; ;A.S. 2016/2017 - Contributi per il diritto allo studio 2017 - Assegnazione borse di studio a sostegno delle spese sostenute dalle famiglie per l'istruzione - Scuola Primaria e Secondaria di I e II grado -Liquidazione di Spesa;20/06/2018;682;4;190;1;Spese correnti;4;Trasferimenti correnti;2;Trasferimenti correnti a Famiglie;5;Altri trasferimenti a famiglie;999;Altri trasferimenti a famiglie n.a.c.;20/06/2018
976;1;0;23,64;23,64;OMESSO NOMINATIVO NEL RISPETTO DELLA NORMATIVA SULLA PROTEZIONE DATI PERSONALI; ;A.S. 2016/2017 - Contributi per il diritto allo studio 2017 - Assegnazione borse di studio a sostegno delle spese sostenute dalle famiglie per l'istruzione - Scuola Primaria e Secondaria di I e II grado -Liquidazione di Spesa;20/06/2018;682;4;190;1;Spese correnti;4;Trasferimenti correnti;2;Trasferimenti correnti a Famiglie;5;Altri trasferimenti a famiglie;999;Altri trasferimenti a famiglie n.a.c.;20/06/2018
977;1;0;23,64;23,64;OMESSO NOMINATIVO NEL RISPETTO DELLA NORMATIVA SULLA PROTEZIONE DATI PERSONALI; ;A.S. 2016/2017 - Contributi per il diritto allo studio 2017 - Assegnazione borse di studio a sostegno delle spese sostenute dalle famiglie per l'istruzione - Scuola Primaria e Secondaria di I e II grado -Liquidazione di Spesa;20/06/2018;682;4;190;1;Spese correnti;4;Trasferimenti correnti;2;Trasferimenti correnti a Famiglie;5;Altri trasferimenti a famiglie;999;Altri trasferimenti a famiglie n.a.c.;20/06/2018
978;1;0;23,64;23,64;OMESSO NOMINATIVO NEL RISPETTO DELLA NORMATIVA SULLA PROTEZIONE DATI PERSONALI; ;A.S. 2016/2017 - Contributi per il diritto allo studio 2017 - Assegnazione borse di studio a sostegno delle spese sostenute dalle famiglie per l'istruzione - Scuola Primaria e Secondaria di I e II grado -Liquidazione di Spesa;20/06/2018;682;4;190;1;Spese correnti;4;Trasferimenti correnti;2;Trasferimenti correnti a Famiglie;5;Altri trasferimenti a famiglie;999;Altri trasferimenti a famiglie n.a.c.;20/06/2018
979;1;0;23,64;23,64;OMESSO NOMINATIVO NEL RISPETTO DELLA NORMATIVA SULLA PROTEZIONE DATI PERSONALI; ;A.S. 2016/2017 - Contributi per il diritto allo studio 2017 - Assegnazione borse di studio a sostegno delle spese sostenute dalle famiglie per l'istruzione - Scuola Primaria e Secondaria di I e II grado -Liquidazione di Spesa;20/06/2018;682;4;190;1;Spese correnti;4;Trasferimenti correnti;2;Trasferimenti correnti a Famiglie;5;Altri trasferimenti a famiglie;999;Altri trasferimenti a famiglie n.a.c.;20/06/2018
980;1;0;23,64;23,64;OMESSO NOMINATIVO NEL RISPETTO DELLA NORMATIVA SULLA PROTEZIONE DATI PERSONALI; ;A.S. 2016/2017 - Contributi per il diritto allo studio 2017 - Assegnazione borse di studio a sostegno delle spese sostenute dalle famiglie per l'istruzione - Scuola Primaria e Secondaria di I e II grado -Liquidazione di Spesa;20/06/2018;682;4;190;1;Spese correnti;4;Trasferimenti correnti;2;Trasferimenti correnti a Famiglie;5;Altri trasferimenti a famiglie;999;Altri trasferimenti a famiglie n.a.c.;20/06/2018
981;1;0;23,64;23,64;OMESSO NOMINATIVO NEL RISPETTO DELLA NORMATIVA SULLA PROTEZIONE DATI PERSONALI; ;A.S. 2016/2017 - Contributi per il diritto allo studio 2017 - Assegnazione borse di studio a sostegno delle spese sostenute dalle famiglie per l'istruzione - Scuola Primaria e Secondaria di I e II grado -Liquidazione di Spesa;20/06/2018;682;4;190;1;Spese correnti;4;Trasferimenti correnti;2;Trasferimenti correnti a Famiglie;5;Altri trasferimenti a famiglie;999;Altri trasferimenti a famiglie n.a.c.;20/06/2018
982;1;0;23,64;23,64;OMESSO NOMINATIVO NEL RISPETTO DELLA NORMATIVA SULLA PROTEZIONE DATI PERSONALI; ;A.S. 2016/2017 - Contributi per il diritto allo studio 2017 - Assegnazione borse di studio a sostegno delle spese sostenute dalle famiglie per l'istruzione - Scuola Primaria e Secondaria di I e II grado -Liquidazione di Spesa;20/06/2018;682;4;190;1;Spese correnti;4;Trasferimenti correnti;2;Trasferimenti correnti a Famiglie;5;Altri trasferimenti a famiglie;999;Altri trasferimenti a famiglie n.a.c.;20/06/2018
983;1;0;23,64;23,64;OMESSO NOMINATIVO NEL RISPETTO DELLA NORMATIVA SULLA PROTEZIONE DATI PERSONALI; ;A.S. 2016/2017 - Contributi per il diritto allo studio 2017 - Assegnazione borse di studio a sostegno delle spese sostenute dalle famiglie per l'istruzione - Scuola Primaria e Secondaria di I e II grado -Liquidazione di Spesa;20/06/2018;682;4;190;1;Spese correnti;4;Trasferimenti correnti;2;Trasferimenti correnti a Famiglie;5;Altri trasferimenti a famiglie;999;Altri trasferimenti a famiglie n.a.c.;20/06/2018
984;1;0;23,64;23,64;OMESSO NOMINATIVO NEL RISPETTO DELLA NORMATIVA SULLA PROTEZIONE DATI PERSONALI; ;A.S. 2016/2017 - Contributi per il diritto allo studio 2017 - Assegnazione borse di studio a sostegno delle spese sostenute dalle famiglie per l'istruzione - Scuola Primaria e Secondaria di I e II grado -Liquidazione di Spesa;20/06/2018;682;4;190;1;Spese correnti;4;Trasferimenti correnti;2;Trasferimenti correnti a Famiglie;5;Altri trasferimenti a famiglie;999;Altri trasferimenti a famiglie n.a.c.;20/06/2018
985;1;0;23,64;23,64;OMESSO NOMINATIVO NEL RISPETTO DELLA NORMATIVA SULLA PROTEZIONE DATI PERSONALI; ;A.S. 2016/2017 - Contributi per il diritto allo studio 2017 - Assegnazione borse di studio a sostegno delle spese sostenute dalle famiglie per l'istruzione - Scuola Primaria e Secondaria di I e II grado -Liquidazione di Spesa;20/06/2018;682;4;190;1;Spese correnti;4;Trasferimenti correnti;2;Trasferimenti correnti a Famiglie;5;Altri trasferimenti a famiglie;999;Altri trasferimenti a famiglie n.a.c.;20/06/2018
986;1;0;23,64;23,64;OMESSO NOMINATIVO NEL RISPETTO DELLA NORMATIVA SULLA PROTEZIONE DATI PERSONALI; ;A.S. 2016/2017 - Contributi per il diritto allo studio 2017 - Assegnazione borse di studio a sostegno delle spese sostenute dalle famiglie per l'istruzione - Scuola Primaria e Secondaria di I e II grado -Liquidazione di Spesa;20/06/2018;682;4;190;1;Spese correnti;4;Trasferimenti correnti;2;Trasferimenti correnti a Famiglie;5;Altri trasferimenti a famiglie;999;Altri trasferimenti a famiglie n.a.c.;20/06/2018
987;1;0;23,64;23,64;OMESSO NOMINATIVO NEL RISPETTO DELLA NORMATIVA SULLA PROTEZIONE DATI PERSONALI; ;A.S. 2016/2017 - Contributi per il diritto allo studio 2017 - Assegnazione borse di studio a sostegno delle spese sostenute dalle famiglie per l'istruzione - Scuola Primaria e Secondaria di I e II grado -Liquidazione di Spesa;20/06/2018;682;4;190;1;Spese correnti;4;Trasferimenti correnti;2;Trasferimenti correnti a Famiglie;5;Altri trasferimenti a famiglie;999;Altri trasferimenti a famiglie n.a.c.;20/06/2018
988;1;0;23,64;23,64;OMESSO NOMINATIVO NEL RISPETTO DELLA NORMATIVA SULLA PROTEZIONE DATI PERSONALI; ;A.S. 2016/2017 - Contributi per il diritto allo studio 2017 - Assegnazione borse di studio a sostegno delle spese sostenute dalle famiglie per l'istruzione - Scuola Primaria e Secondaria di I e II grado -Liquidazione di Spesa;20/06/2018;682;4;190;1;Spese correnti;4;Trasferimenti correnti;2;Trasferimenti correnti a Famiglie;5;Altri trasferimenti a famiglie;999;Altri trasferimenti a famiglie n.a.c.;20/06/2018
989;1;0;23,64;23,64;OMESSO NOMINATIVO NEL RISPETTO DELLA NORMATIVA SULLA PROTEZIONE DATI PERSONALI; ;A.S. 2016/2017 - Contributi per il diritto allo studio 2017 - Assegnazione borse di studio a sostegno delle spese sostenute dalle famiglie per l'istruzione - Scuola Primaria e Secondaria di I e II grado -Liquidazione di Spesa;20/06/2018;682;4;190;1;Spese correnti;4;Trasferimenti correnti;2;Trasferimenti correnti a Famiglie;5;Altri trasferimenti a famiglie;999;Altri trasferimenti a famiglie n.a.c.;20/06/2018
990;1;0;23,64;23,64;OMESSO NOMINATIVO NEL RISPETTO DELLA NORMATIVA SULLA PROTEZIONE DATI PERSONALI; ;A.S. 2016/2017 - Contributi per il diritto allo studio 2017 - Assegnazione borse di studio a sostegno delle spese sostenute dalle famiglie per l'istruzione - Scuola Primaria e Secondaria di I e II grado -Liquidazione di Spesa;20/06/2018;682;4;190;1;Spese correnti;4;Trasferimenti correnti;2;Trasferimenti correnti a Famiglie;5;Altri trasferimenti a famiglie;999;Altri trasferimenti a famiglie n.a.c.;20/06/2018
991;1;0;23,64;23,64;OMESSO NOMINATIVO NEL RISPETTO DELLA NORMATIVA SULLA PROTEZIONE DATI PERSONALI; ;A.S. 2016/2017 - Contributi per il diritto allo studio 2017 - Assegnazione borse di studio a sostegno delle spese sostenute dalle famiglie per l'istruzione - Scuola Primaria e Secondaria di I e II grado -Liquidazione di Spesa;20/06/2018;682;4;190;1;Spese correnti;4;Trasferimenti correnti;2;Trasferimenti correnti a Famiglie;5;Altri trasferimenti a famiglie;999;Altri trasferimenti a famiglie n.a.c.;20/06/2018
992;1;0;23,64;23,64;OMESSO NOMINATIVO NEL RISPETTO DELLA NORMATIVA SULLA PROTEZIONE DATI PERSONALI; ;A.S. 2016/2017 - Contributi per il diritto allo studio 2017 - Assegnazione borse di studio a sostegno delle spese sostenute dalle famiglie per l'istruzione - Scuola Primaria e Secondaria di I e II grado -Liquidazione di Spesa;20/06/2018;682;4;190;1;Spese correnti;4;Trasferimenti correnti;2;Trasferimenti correnti a Famiglie;5;Altri trasferimenti a famiglie;999;Altri trasferimenti a famiglie n.a.c.;20/06/2018
993;1;0;23,64;23,64;OMESSO NOMINATIVO NEL RISPETTO DELLA NORMATIVA SULLA PROTEZIONE DATI PERSONALI; ;A.S. 2016/2017 - Contributi per il diritto allo studio 2017 - Assegnazione borse di studio a sostegno delle spese sostenute dalle famiglie per l'istruzione - Scuola Primaria e Secondaria di I e II grado -Liquidazione di Spesa;20/06/2018;682;4;190;1;Spese correnti;4;Trasferimenti correnti;2;Trasferimenti correnti a Famiglie;5;Altri trasferimenti a famiglie;999;Altri trasferimenti a famiglie n.a.c.;20/06/2018
994;1;0;23,64;23,64;OMESSO NOMINATIVO NEL RISPETTO DELLA NORMATIVA SULLA PROTEZIONE DATI PERSONALI; ;A.S. 2016/2017 - Contributi per il diritto allo studio 2017 - Assegnazione borse di studio a sostegno delle spese sostenute dalle famiglie per l'istruzione - Scuola Primaria e Secondaria di I e II grado -Liquidazione di Spesa;20/06/2018;682;4;190;1;Spese correnti;4;Trasferimenti correnti;2;Trasferimenti correnti a Famiglie;5;Altri trasferimenti a famiglie;999;Altri trasferimenti a famiglie n.a.c.;20/06/2018
995;1;0;23,64;23,64;OMESSO NOMINATIVO NEL RISPETTO DELLA NORMATIVA SULLA PROTEZIONE DATI PERSONALI; ;A.S. 2016/2017 - Contributi per il diritto allo studio 2017 - Assegnazione borse di studio a sostegno delle spese sostenute dalle famiglie per l'istruzione - Scuola Primaria e Secondaria di I e II grado -Liquidazione di Spesa;20/06/2018;682;4;190;1;Spese correnti;4;Trasferimenti correnti;2;Trasferimenti correnti a Famiglie;5;Altri trasferimenti a famiglie;999;Altri trasferimenti a famiglie n.a.c.;20/06/2018
996;1;0;23,64;23,64;OMESSO NOMINATIVO NEL RISPETTO DELLA NORMATIVA SULLA PROTEZIONE DATI PERSONALI; ;A.S. 2016/2017 - Contributi per il diritto allo studio 2017 - Assegnazione borse di studio a sostegno delle spese sostenute dalle famiglie per l'istruzione - Scuola Primaria e Secondaria di I e II grado -Liquidazione di Spesa;20/06/2018;682;4;190;1;Spese correnti;4;Trasferimenti correnti;2;Trasferimenti correnti a Famiglie;5;Altri trasferimenti a famiglie;999;Altri trasferimenti a famiglie n.a.c.;20/06/2018
997;1;0;23,63;23,63;OMESSO NOMINATIVO NEL RISPETTO DELLA NORMATIVA SULLA PROTEZIONE DATI PERSONALI; ;A.S. 2016/2017 - Contributi per il diritto allo studio 2017 - Assegnazione borse di studio a sostegno delle spese sostenute dalle famiglie per l'istruzione - Scuola Primaria e Secondaria di I e II grado -Liquidazione di Spesa;20/06/2018;682;4;190;1;Spese correnti;4;Trasferimenti correnti;2;Trasferimenti correnti a Famiglie;5;Altri trasferimenti a famiglie;999;Altri trasferimenti a famiglie n.a.c.;20/06/2018
998;1;0;23,63;23,63;OMESSO NOMINATIVO NEL RISPETTO DELLA NORMATIVA SULLA PROTEZIONE DATI PERSONALI; ;A.S. 2016/2017 - Contributi per il diritto allo studio 2017 - Assegnazione borse di studio a sostegno delle spese sostenute dalle famiglie per l'istruzione - Scuola Primaria e Secondaria di I e II grado -Liquidazione di Spesa;20/06/2018;682;4;190;1;Spese correnti;4;Trasferimenti correnti;2;Trasferimenti correnti a Famiglie;5;Altri trasferimenti a famiglie;999;Altri trasferimenti a famiglie n.a.c.;20/06/2018
999;1;0;23,63;23,63;OMESSO NOMINATIVO NEL RISPETTO DELLA NORMATIVA SULLA PROTEZIONE DATI PERSONALI; ;A.S. 2016/2017 - Contributi per il diritto allo studio 2017 - Assegnazione borse di studio a sostegno delle spese sostenute dalle famiglie per l'istruzione - Scuola Primaria e Secondaria di I e II grado -Liquidazione di Spesa;20/06/2018;682;4;190;1;Spese correnti;4;Trasferimenti correnti;2;Trasferimenti correnti a Famiglie;5;Altri trasferimenti a famiglie;999;Altri trasferimenti a famiglie n.a.c.;20/06/2018
1000;1;0;23,63;23,63;OMESSO NOMINATIVO NEL RISPETTO DELLA NORMATIVA SULLA PROTEZIONE DATI PERSONALI; ;A.S. 2016/2017 - Contributi per il diritto allo studio 2017 - Assegnazione borse di studio a sostegno delle spese sostenute dalle famiglie per l'istruzione - Scuola Primaria e Secondaria di I e II grado -Liquidazione di Spesa;20/06/2018;682;4;190;1;Spese correnti;4;Trasferimenti correnti;2;Trasferimenti correnti a Famiglie;5;Altri trasferimenti a famiglie;999;Altri trasferimenti a famiglie n.a.c.;20/06/2018
1001;1;0;23,63;23,63;OMESSO NOMINATIVO NEL RISPETTO DELLA NORMATIVA SULLA PROTEZIONE DATI PERSONALI; ;A.S. 2016/2017 - Contributi per il diritto allo studio 2017 - Assegnazione borse di studio a sostegno delle spese sostenute dalle famiglie per l'istruzione - Scuola Primaria e Secondaria di I e II grado -Liquidazione di Spesa;20/06/2018;682;4;190;1;Spese correnti;4;Trasferimenti correnti;2;Trasferimenti correnti a Famiglie;5;Altri trasferimenti a famiglie;999;Altri trasferimenti a famiglie n.a.c.;20/06/2018
1002;1;0;23,63;23,63;OMESSO NOMINATIVO NEL RISPETTO DELLA NORMATIVA SULLA PROTEZIONE DATI PERSONALI; ;A.S. 2016/2017 - Contributi per il diritto allo studio 2017 - Assegnazione borse di studio a sostegno delle spese sostenute dalle famiglie per l'istruzione - Scuola Primaria e Secondaria di I e II grado -Liquidazione di Spesa;20/06/2018;682;4;190;1;Spese correnti;4;Trasferimenti correnti;2;Trasferimenti correnti a Famiglie;5;Altri trasferimenti a famiglie;999;Altri trasferimenti a famiglie n.a.c.;20/06/2018
1003;1;0;23,63;23,63;OMESSO NOMINATIVO NEL RISPETTO DELLA NORMATIVA SULLA PROTEZIONE DATI PERSONALI; ;A.S. 2016/2017 - Contributi per il diritto allo studio 2017 - Assegnazione borse di studio a sostegno delle spese sostenute dalle famiglie per l'istruzione - Scuola Primaria e Secondaria di I e II grado -Liquidazione di Spesa;20/06/2018;682;4;190;1;Spese correnti;4;Trasferimenti correnti;2;Trasferimenti correnti a Famiglie;5;Altri trasferimenti a famiglie;999;Altri trasferimenti a famiglie n.a.c.;20/06/2018
1004;1;0;23,63;23,63;OMESSO NOMINATIVO NEL RISPETTO DELLA NORMATIVA SULLA PROTEZIONE DATI PERSONALI; ;A.S. 2016/2017 - Contributi per il diritto allo studio 2017 - Assegnazione borse di studio a sostegno delle spese sostenute dalle famiglie per l'istruzione - Scuola Primaria e Secondaria di I e II grado -Liquidazione di Spesa;20/06/2018;682;4;190;1;Spese correnti;4;Trasferimenti correnti;2;Trasferimenti correnti a Famiglie;5;Altri trasferimenti a famiglie;999;Altri trasferimenti a famiglie n.a.c.;20/06/2018
1005;1;0;23,63;23,63;OMESSO NOMINATIVO NEL RISPETTO DELLA NORMATIVA SULLA PROTEZIONE DATI PERSONALI; ;A.S. 2016/2017 - Contributi per il diritto allo studio 2017 - Assegnazione borse di studio a sostegno delle spese sostenute dalle famiglie per l'istruzione - Scuola Primaria e Secondaria di I e II grado -Liquidazione di Spesa;20/06/2018;682;4;190;1;Spese correnti;4;Trasferimenti correnti;2;Trasferimenti correnti a Famiglie;5;Altri trasferimenti a famiglie;999;Altri trasferimenti a famiglie n.a.c.;20/06/2018
1006;1;0;23,63;23,63;OMESSO NOMINATIVO NEL RISPETTO DELLA NORMATIVA SULLA PROTEZIONE DATI PERSONALI; ;A.S. 2016/2017 - Contributi per il diritto allo studio 2017 - Assegnazione borse di studio a sostegno delle spese sostenute dalle famiglie per l'istruzione - Scuola Primaria e Secondaria di I e II grado -Liquidazione di Spesa;20/06/2018;682;4;190;1;Spese correnti;4;Trasferimenti correnti;2;Trasferimenti correnti a Famiglie;5;Altri trasferimenti a famiglie;999;Altri trasferimenti a famiglie n.a.c.;20/06/2018
1007;1;0;23,63;23,63;OMESSO NOMINATIVO NEL RISPETTO DELLA NORMATIVA SULLA PROTEZIONE DATI PERSONALI; ;A.S. 2016/2017 - Contributi per il diritto allo studio 2017 - Assegnazione borse di studio a sostegno delle spese sostenute dalle famiglie per l'istruzione - Scuola Primaria e Secondaria di I e II grado -Liquidazione di Spesa;20/06/2018;682;4;190;1;Spese correnti;4;Trasferimenti correnti;2;Trasferimenti correnti a Famiglie;5;Altri trasferimenti a famiglie;999;Altri trasferimenti a famiglie n.a.c.;20/06/2018
1008;1;0;23,63;23,63;OMESSO NOMINATIVO NEL RISPETTO DELLA NORMATIVA SULLA PROTEZIONE DATI PERSONALI; ;A.S. 2016/2017 - Contributi per il diritto allo studio 2017 - Assegnazione borse di studio a sostegno delle spese sostenute dalle famiglie per l'istruzione - Scuola Primaria e Secondaria di I e II grado -Liquidazione di Spesa;20/06/2018;682;4;190;1;Spese correnti;4;Trasferimenti correnti;2;Trasferimenti correnti a Famiglie;5;Altri trasferimenti a famiglie;999;Altri trasferimenti a famiglie n.a.c.;20/06/2018
1009;1;0;23,63;23,63;OMESSO NOMINATIVO NEL RISPETTO DELLA NORMATIVA SULLA PROTEZIONE DATI PERSONALI; ;A.S. 2016/2017 - Contributi per il diritto allo studio 2017 - Assegnazione borse di studio a sostegno delle spese sostenute dalle famiglie per l'istruzione - Scuola Primaria e Secondaria di I e II grado -Liquidazione di Spesa;20/06/2018;682;4;190;1;Spese correnti;4;Trasferimenti correnti;2;Trasferimenti correnti a Famiglie;5;Altri trasferimenti a famiglie;999;Altri trasferimenti a famiglie n.a.c.;20/06/2018
1010;1;0;23,63;23,63;OMESSO NOMINATIVO NEL RISPETTO DELLA NORMATIVA SULLA PROTEZIONE DATI PERSONALI; ;A.S. 2016/2017 - Contributi per il diritto allo studio 2017 - Assegnazione borse di studio a sostegno delle spese sostenute dalle famiglie per l'istruzione - Scuola Primaria e Secondaria di I e II grado -Liquidazione di Spesa;20/06/2018;682;4;190;1;Spese correnti;4;Trasferimenti correnti;2;Trasferimenti correnti a Famiglie;5;Altri trasferimenti a famiglie;999;Altri trasferimenti a famiglie n.a.c.;20/06/2018
1011;1;0;23,63;23,63;OMESSO NOMINATIVO NEL RISPETTO DELLA NORMATIVA SULLA PROTEZIONE DATI PERSONALI; ;A.S. 2016/2017 - Contributi per il diritto allo studio 2017 - Assegnazione borse di studio a sostegno delle spese sostenute dalle famiglie per l'istruzione - Scuola Primaria e Secondaria di I e II grado -Liquidazione di Spesa;20/06/2018;682;4;190;1;Spese correnti;4;Trasferimenti correnti;2;Trasferimenti correnti a Famiglie;5;Altri trasferimenti a famiglie;999;Altri trasferimenti a famiglie n.a.c.;20/06/2018
1012;1;0;23,63;23,63;OMESSO NOMINATIVO NEL RISPETTO DELLA NORMATIVA SULLA PROTEZIONE DATI PERSONALI; ;A.S. 2016/2017 - Contributi per il diritto allo studio 2017 - Assegnazione borse di studio a sostegno delle spese sostenute dalle famiglie per l'istruzione - Scuola Primaria e Secondaria di I e II grado -Liquidazione di Spesa;20/06/2018;682;4;190;1;Spese correnti;4;Trasferimenti correnti;2;Trasferimenti correnti a Famiglie;5;Altri trasferimenti a famiglie;999;Altri trasferimenti a famiglie n.a.c.;20/06/2018
1013;1;0;23,63;23,63;OMESSO NOMINATIVO NEL RISPETTO DELLA NORMATIVA SULLA PROTEZIONE DATI PERSONALI; ;A.S. 2016/2017 - Contributi per il diritto allo studio 2017 - Assegnazione borse di studio a sostegno delle spese sostenute dalle famiglie per l'istruzione - Scuola Primaria e Secondaria di I e II grado -Liquidazione di Spesa;20/06/2018;682;4;190;1;Spese correnti;4;Trasferimenti correnti;2;Trasferimenti correnti a Famiglie;5;Altri trasferimenti a famiglie;999;Altri trasferimenti a famiglie n.a.c.;20/06/2018
1014;1;0;23,63;23,63;OMESSO NOMINATIVO NEL RISPETTO DELLA NORMATIVA SULLA PROTEZIONE DATI PERSONALI; ;A.S. 2016/2017 - Contributi per il diritto allo studio 2017 - Assegnazione borse di studio a sostegno delle spese sostenute dalle famiglie per l'istruzione - Scuola Primaria e Secondaria di I e II grado -Liquidazione di Spesa;20/06/2018;682;4;190;1;Spese correnti;4;Trasferimenti correnti;2;Trasferimenti correnti a Famiglie;5;Altri trasferimenti a famiglie;999;Altri trasferimenti a famiglie n.a.c.;20/06/2018
1015;1;0;23,63;23,63;OMESSO NOMINATIVO NEL RISPETTO DELLA NORMATIVA SULLA PROTEZIONE DATI PERSONALI; ;A.S. 2016/2017 - Contributi per il diritto allo studio 2017 - Assegnazione borse di studio a sostegno delle spese sostenute dalle famiglie per l'istruzione - Scuola Primaria e Secondaria di I e II grado -Liquidazione di Spesa;20/06/2018;682;4;190;1;Spese correnti;4;Trasferimenti correnti;2;Trasferimenti correnti a Famiglie;5;Altri trasferimenti a famiglie;999;Altri trasferimenti a famiglie n.a.c.;20/06/2018
1016;1;0;23,63;23,63;OMESSO NOMINATIVO NEL RISPETTO DELLA NORMATIVA SULLA PROTEZIONE DATI PERSONALI; ;A.S. 2016/2017 - Contributi per il diritto allo studio 2017 - Assegnazione borse di studio a sostegno delle spese sostenute dalle famiglie per l'istruzione - Scuola Primaria e Secondaria di I e II grado -Liquidazione di Spesa;20/06/2018;682;4;190;1;Spese correnti;4;Trasferimenti correnti;2;Trasferimenti correnti a Famiglie;5;Altri trasferimenti a famiglie;999;Altri trasferimenti a famiglie n.a.c.;20/06/2018
1017;1;0;23,63;23,63;OMESSO NOMINATIVO NEL RISPETTO DELLA NORMATIVA SULLA PROTEZIONE DATI PERSONALI; ;A.S. 2016/2017 - Contributi per il diritto allo studio 2017 - Assegnazione borse di studio a sostegno delle spese sostenute dalle famiglie per l'istruzione - Scuola Primaria e Secondaria di I e II grado -Liquidazione di Spesa;20/06/2018;682;4;190;1;Spese correnti;4;Trasferimenti correnti;2;Trasferimenti correnti a Famiglie;5;Altri trasferimenti a famiglie;999;Altri trasferimenti a famiglie n.a.c.;20/06/2018
1019;1;0;277,45;277,45;OMESSO NOMINATIVO NEL RISPETTO DELLA NORMATIVA SULLA PROTEZIONE DATI PERSONALI; ;A.S. 2016/2017 - Contributo per la fornitura gratuita o semigratuita di libri di testo in favore degli studenti della Scuola Secondaria di I e II grado - liquidazione DI SPESA.;21/06/2018;622;1;189;1;Spese correnti;4;Trasferimenti correnti;2;Trasferimenti correnti a Famiglie;5;Altri trasferimenti a famiglie;999;Altri trasferimenti a famiglie n.a.c.;21/06/2018
1020;1;0;336,2;336,2;OMESSO NOMINATIVO NEL RISPETTO DELLA NORMATIVA SULLA PROTEZIONE DATI PERSONALI; ;A.S. 2016/2017 - Contributo per la fornitura gratuita o semigratuita di libri di testo in favore degli studenti della Scuola Secondaria di I e II grado - liquidazione DI SPESA.;21/06/2018;622;1;189;1;Spese correnti;4;Trasferimenti correnti;2;Trasferimenti correnti a Famiglie;5;Altri trasferimenti a famiglie;999;Altri trasferimenti a famiglie n.a.c.;21/06/2018
1021;1;0;116,39;116,39;OMESSO NOMINATIVO NEL RISPETTO DELLA NORMATIVA SULLA PROTEZIONE DATI PERSONALI; ;A.S. 2016/2017 - Contributo per la fornitura gratuita o semigratuita di libri di testo in favore degli studenti della Scuola Secondaria di I e II grado - liquidazione DI SPESA.;21/06/2018;622;1;189;1;Spese correnti;4;Trasferimenti correnti;2;Trasferimenti correnti a Famiglie;5;Altri trasferimenti a famiglie;999;Altri trasferimenti a famiglie n.a.c.;21/06/2018
1022;1;0;122,7;122,7;OMESSO NOMINATIVO NEL RISPETTO DELLA NORMATIVA SULLA PROTEZIONE DATI PERSONALI; ;A.S. 2016/2017 - Contributo per la fornitura gratuita o semigratuita di libri di testo in favore degli studenti della Scuola Secondaria di I e II grado - liquidazione DI SPESA.;21/06/2018;622;1;189;1;Spese correnti;4;Trasferimenti correnti;2;Trasferimenti correnti a Famiglie;5;Altri trasferimenti a famiglie;999;Altri trasferimenti a famiglie n.a.c.;21/06/2018
1023;1;0;105,4;105,4;OMESSO NOMINATIVO NEL RISPETTO DELLA NORMATIVA SULLA PROTEZIONE DATI PERSONALI; ;A.S. 2016/2017 - Contributo per la fornitura gratuita o semigratuita di libri di testo in favore degli studenti della Scuola Secondaria di I e II grado - liquidazione DI SPESA.;21/06/2018;622;1;189;1;Spese correnti;4;Trasferimenti correnti;2;Trasferimenti correnti a Famiglie;5;Altri trasferimenti a famiglie;999;Altri trasferimenti a famiglie n.a.c.;21/06/2018
1024;1;0;45,4;45,4;OMESSO NOMINATIVO NEL RISPETTO DELLA NORMATIVA SULLA PROTEZIONE DATI PERSONALI; ;A.S. 2016/2017 - Contributo per la fornitura gratuita o semigratuita di libri di testo in favore degli studenti della Scuola Secondaria di I e II grado - liquidazione DI SPESA.;21/06/2018;622;1;189;1;Spese correnti;4;Trasferimenti correnti;2;Trasferimenti correnti a Famiglie;5;Altri trasferimenti a famiglie;999;Altri trasferimenti a famiglie n.a.c.;21/06/2018
1025;1;0;96,7;96,7;OMESSO NOMINATIVO NEL RISPETTO DELLA NORMATIVA SULLA PROTEZIONE DATI PERSONALI; ;A.S. 2016/2017 - Contributo per la fornitura gratuita o semigratuita di libri di testo in favore degli studenti della Scuola Secondaria di I e II grado - liquidazione DI SPESA.;21/06/2018;622;1;189;1;Spese correnti;4;Trasferimenti correnti;2;Trasferimenti correnti a Famiglie;5;Altri trasferimenti a famiglie;999;Altri trasferimenti a famiglie n.a.c.;21/06/2018
1026;1;0;97,29;97,29;OMESSO NOMINATIVO NEL RISPETTO DELLA NORMATIVA SULLA PROTEZIONE DATI PERSONALI; ;A.S. 2016/2017 - Contributo per la fornitura gratuita o semigratuita di libri di testo in favore degli studenti della Scuola Secondaria di I e II grado - liquidazione DI SPESA.;21/06/2018;622;1;189;1;Spese correnti;4;Trasferimenti correnti;2;Trasferimenti correnti a Famiglie;5;Altri trasferimenti a famiglie;999;Altri trasferimenti a famiglie n.a.c.;21/06/2018
1027;1;0;108,5;108,5;OMESSO NOMINATIVO NEL RISPETTO DELLA NORMATIVA SULLA PROTEZIONE DATI PERSONALI; ;A.S. 2016/2017 - Contributo per la fornitura gratuita o semigratuita di libri di testo in favore degli studenti della Scuola Secondaria di I e II grado - liquidazione DI SPESA.;21/06/2018;622;1;189;1;Spese correnti;4;Trasferimenti correnti;2;Trasferimenti correnti a Famiglie;5;Altri trasferimenti a famiglie;999;Altri trasferimenti a famiglie n.a.c.;21/06/2018
1028;1;0;36,84;36,84;OMESSO NOMINATIVO NEL RISPETTO DELLA NORMATIVA SULLA PROTEZIONE DATI PERSONALI; ;A.S. 2016/2017 - Contributo per la fornitura gratuita o semigratuita di libri di testo in favore degli studenti della Scuola Secondaria di I e II grado - liquidazione DI SPESA.;21/06/2018;622;1;189;1;Spese correnti;4;Trasferimenti correnti;2;Trasferimenti correnti a Famiglie;5;Altri trasferimenti a famiglie;999;Altri trasferimenti a famiglie n.a.c.;21/06/2018
1029;1;0;106,94;106,94;OMESSO NOMINATIVO NEL RISPETTO DELLA NORMATIVA SULLA PROTEZIONE DATI PERSONALI; ;A.S. 2016/2017 - Contributo per la fornitura gratuita o semigratuita di libri di testo in favore degli studenti della Scuola Secondaria di I e II grado - liquidazione DI SPESA.;21/06/2018;622;1;189;1;Spese correnti;4;Trasferimenti correnti;2;Trasferimenti correnti a Famiglie;5;Altri trasferimenti a famiglie;999;Altri trasferimenti a famiglie n.a.c.;21/06/2018
1030;1;0;234,9;234,9;OMESSO NOMINATIVO NEL RISPETTO DELLA NORMATIVA SULLA PROTEZIONE DATI PERSONALI; ;A.S. 2016/2017 - Contributo per la fornitura gratuita o semigratuita di libri di testo in favore degli studenti della Scuola Secondaria di I e II grado - liquidazione DI SPESA.;21/06/2018;622;1;189;1;Spese correnti;4;Trasferimenti correnti;2;Trasferimenti correnti a Famiglie;5;Altri trasferimenti a famiglie;999;Altri trasferimenti a famiglie n.a.c.;21/06/2018
1031;1;0;67,52;67,52;OMESSO NOMINATIVO NEL RISPETTO DELLA NORMATIVA SULLA PROTEZIONE DATI PERSONALI; ;A.S. 2016/2017 - Contributo per la fornitura gratuita o semigratuita di libri di testo in favore degli studenti della Scuola Secondaria di I e II grado - liquidazione DI SPESA.;21/06/2018;622;1;189;1;Spese correnti;4;Trasferimenti correnti;2;Trasferimenti correnti a Famiglie;5;Altri trasferimenti a famiglie;999;Altri trasferimenti a famiglie n.a.c.;21/06/2018
1032;1;0;65,57;65,57;OMESSO NOMINATIVO NEL RISPETTO DELLA NORMATIVA SULLA PROTEZIONE DATI PERSONALI; ;A.S. 2016/2017 - Contributo per la fornitura gratuita o semigratuita di libri di testo in favore degli studenti della Scuola Secondaria di I e II grado - liquidazione DI SPESA.;21/06/2018;622;1;521;1;Spese correnti;4;Trasferimenti correnti;2;Trasferimenti correnti a Famiglie;5;Altri trasferimenti a famiglie;999;Altri trasferimenti a famiglie n.a.c.;21/06/2018
1033;1;0;248,23;248,23;OMESSO NOMINATIVO NEL RISPETTO DELLA NORMATIVA SULLA PROTEZIONE DATI PERSONALI; ;A.S. 2016/2017 - Contributo per la fornitura gratuita o semigratuita di libri di testo in favore degli studenti della Scuola Secondaria di I e II grado - liquidazione DI SPESA.;21/06/2018;622;1;521;1;Spese correnti;4;Trasferimenti correnti;2;Trasferimenti correnti a Famiglie;5;Altri trasferimenti a famiglie;999;Altri trasferimenti a famiglie n.a.c.;21/06/2018
1034;1;0;28,91;28,91;OMESSO NOMINATIVO NEL RISPETTO DELLA NORMATIVA SULLA PROTEZIONE DATI PERSONALI; ;A.S. 2016/2017 - Contributo per la fornitura gratuita o semigratuita di libri di testo in favore degli studenti della Scuola Secondaria di I e II grado - liquidazione DI SPESA.;21/06/2018;622;1;521;1;Spese correnti;4;Trasferimenti correnti;2;Trasferimenti correnti a Famiglie;5;Altri trasferimenti a famiglie;999;Altri trasferimenti a famiglie n.a.c.;21/06/2018
1035;1;0;18,38;18,38;OMESSO NOMINATIVO NEL RISPETTO DELLA NORMATIVA SULLA PROTEZIONE DATI PERSONALI; ;A.S. 2016/2017 - Contributo per la fornitura gratuita o semigratuita di libri di testo in favore degli studenti della Scuola Secondaria di I e II grado - liquidazione DI SPESA.;21/06/2018;622;1;521;1;Spese correnti;4;Trasferimenti correnti;2;Trasferimenti correnti a Famiglie;5;Altri trasferimenti a famiglie;999;Altri trasferimenti a famiglie n.a.c.;21/06/2018
1036;1;0;95,9;95,9;OMESSO NOMINATIVO NEL RISPETTO DELLA NORMATIVA SULLA PROTEZIONE DATI PERSONALI; ;A.S. 2016/2017 - Contributo per la fornitura gratuita o semigratuita di libri di testo in favore degli studenti della Scuola Secondaria di I e II grado - liquidazione DI SPESA.;21/06/2018;622;1;521;1;Spese correnti;4;Trasferimenti correnti;2;Trasferimenti correnti a Famiglie;5;Altri trasferimenti a famiglie;999;Altri trasferimenti a famiglie n.a.c.;21/06/2018
1037;1;0;28,47;28,47;OMESSO NOMINATIVO NEL RISPETTO DELLA NORMATIVA SULLA PROTEZIONE DATI PERSONALI; ;A.S. 2016/2017 - Contributo per la fornitura gratuita o semigratuita di libri di testo in favore degli studenti della Scuola Secondaria di I e II grado - liquidazione DI SPESA.;21/06/2018;622;1;521;1;Spese correnti;4;Trasferimenti correnti;2;Trasferimenti correnti a Famiglie;5;Altri trasferimenti a famiglie;999;Altri trasferimenti a famiglie n.a.c.;21/06/2018
1038;1;0;49,45;49,45;OMESSO NOMINATIVO NEL RISPETTO DELLA NORMATIVA SULLA PROTEZIONE DATI PERSONALI; ;A.S. 2016/2017 - Contributo per la fornitura gratuita o semigratuita di libri di testo in favore degli studenti della Scuola Secondaria di I e II grado - liquidazione DI SPESA.;21/06/2018;622;1;521;1;Spese correnti;4;Trasferimenti correnti;2;Trasferimenti correnti a Famiglie;5;Altri trasferimenti a famiglie;999;Altri trasferimenti a famiglie n.a.c.;21/06/2018
1039;1;0;71,11;71,11;OMESSO NOMINATIVO NEL RISPETTO DELLA NORMATIVA SULLA PROTEZIONE DATI PERSONALI; ;A.S. 2016/2017 - Contributo per la fornitura gratuita o semigratuita di libri di testo in favore degli studenti della Scuola Secondaria di I e II grado - liquidazione DI SPESA.;21/06/2018;622;1;521;1;Spese correnti;4;Trasferimenti correnti;2;Trasferimenti correnti a Famiglie;5;Altri trasferimenti a famiglie;999;Altri trasferimenti a famiglie n.a.c.;21/06/2018
1040;1;0;32,28;32,28;OMESSO NOMINATIVO NEL RISPETTO DELLA NORMATIVA SULLA PROTEZIONE DATI PERSONALI; ;A.S. 2016/2017 - Contributo per la fornitura gratuita o semigratuita di libri di testo in favore degli studenti della Scuola Secondaria di I e II grado - liquidazione DI SPESA.;21/06/2018;622;1;521;1;Spese correnti;4;Trasferimenti correnti;2;Trasferimenti correnti a Famiglie;5;Altri trasferimenti a famiglie;999;Altri trasferimenti a famiglie n.a.c.;21/06/2018
1041;1;0;114,66;114,66;OMESSO NOMINATIVO NEL RISPETTO DELLA NORMATIVA SULLA PROTEZIONE DATI PERSONALI; ;A.S. 2016/2017 - Contributo per la fornitura gratuita o semigratuita di libri di testo in favore degli studenti della Scuola Secondaria di I e II grado - liquidazione DI SPESA.;21/06/2018;622;1;521;1;Spese correnti;4;Trasferimenti correnti;2;Trasferimenti correnti a Famiglie;5;Altri trasferimenti a famiglie;999;Altri trasferimenti a famiglie n.a.c.;21/06/2018
1042;1;0;9,13;9,13;OMESSO NOMINATIVO NEL RISPETTO DELLA NORMATIVA SULLA PROTEZIONE DATI PERSONALI; ;A.S. 2016/2017 - Contributo per la fornitura gratuita o semigratuita di libri di testo in favore degli studenti della Scuola Secondaria di I e II grado - liquidazione DI SPESA.;21/06/2018;622;1;521;1;Spese correnti;4;Trasferimenti correnti;2;Trasferimenti correnti a Famiglie;5;Altri trasferimenti a famiglie;999;Altri trasferimenti a famiglie n.a.c.;21/06/2018
1043;1;0;89,7;89,7;OMESSO NOMINATIVO NEL RISPETTO DELLA NORMATIVA SULLA PROTEZIONE DATI PERSONALI; ;A.S. 2016/2017 - Contributo per la fornitura gratuita o semigratuita di libri di testo in favore degli studenti della Scuola Secondaria di I e II grado - liquidazione DI SPESA.;21/06/2018;622;1;521;1;Spese correnti;4;Trasferimenti correnti;2;Trasferimenti correnti a Famiglie;5;Altri trasferimenti a famiglie;999;Altri trasferimenti a famiglie n.a.c.;21/06/2018
1044;1;0;3,13;3,13;AGENZIA DELLE ENTRATE - RISCOSSIONE; ;COMMISSIONI RISCOSSIONI TRIBUTI;21/06/2018;190;1;946;1;Spese correnti;3;Acquisto di beni e servizi;2;Acquisto di servizi;3;Aggi di riscossione;999;Altri aggi di riscossione n.a.c.;21/06/2018
1045;1;0;1,52;1,52;AGENZIA DELLE ENTRATE - RISCOSSIONE; ;COMMISSIONI RISCOSSIONI TRIBUTI;21/06/2018;190;1;946;1;Spese correnti;3;Acquisto di beni e servizi;2;Acquisto di servizi;3;Aggi di riscossione;999;Altri aggi di riscossione n.a.c.;21/06/2018
1046;1;0;0,72;0,72;AGENZIA DELLE ENTRATE - RISCOSSIONE; ;SPESE RISCOSSIONE TRIBUTI;21/06/2018;190;1;917;1;Spese correnti;3;Acquisto di beni e servizi;2;Acquisto di servizi;3;Aggi di riscossione;999;Altri aggi di riscossione n.a.c.;21/06/2018
1047;1;0;0,72;0,72;AGENZIA DELLE ENTRATE - RISCOSSIONE; ;SPESE RISCOSSIONE TRIBUTI ANNO 2008;21/06/2018;190;1;2091;1;Spese correnti;3;Acquisto di beni e servizi;2;Acquisto di servizi;3;Aggi di riscossione;999;Altri aggi di riscossione n.a.c.;21/06/2018
1048;1;0;0,14;0,14;AGENZIA DELLE ENTRATE - RISCOSSIONE; ;SPESE RISCOSSIONE TRIBUTI ANNO 2008;21/06/2018;190;1;2091;1;Spese correnti;3;Acquisto di beni e servizi;2;Acquisto di servizi;3;Aggi di riscossione;999;Altri aggi di riscossione n.a.c.;21/06/2018
1049;1;0;0,7;0,7;AGENZIA DELLE ENTRATE - RISCOSSIONE; ;SPESE RISCOSSIONE TRIBUTI;21/06/2018;190;1;923;1;Spese correnti;3;Acquisto di beni e servizi;2;Acquisto di servizi;3;Aggi di riscossione;999;Altri aggi di riscossione n.a.c.;21/06/2018
1050;1;0;0,04;0,04;AGENZIA DELLE ENTRATE - RISCOSSIONE; ;SPESE RISCOSSIONE TRIBUTI;21/06/2018;190;1;923;1;Spese correnti;3;Acquisto di beni e servizi;2;Acquisto di servizi;3;Aggi di riscossione;999;Altri aggi di riscossione n.a.c.;21/06/2018
1052;1;0;37,16;1.895,19;CABIDDU GIUSEPPE;ZBB162050C;ACCONTO Fatt.n. 1_PA2018  del 05/06/2018 DIREZIONE E CONTABILITÃ LAVORI INTERVENTI DI VALORIZZAZIONE DEL COMPLESSO FORESTALE DI 'PLANU SANGUNI-PERD'E SALI;22/06/2018;3492;1;937;2;Spese in conto capitale;2;Investimenti fissi lordi e acquisto di terreni;2;Terreni e beni materiali non prodotti;2;Patrimonio naturale non prodotto;3;Foreste;22/06/2018
1052;2;0;1.858,03;1.895,19;CABIDDU GIUSEPPE;ZBB162050C;SALDO Fatt.n. 1_PA2018  del 05/06/2018 DIREZIONE E CONTABILITÃ LAVORI INTERVENTI DI VALORIZZAZIONE DEL COMPLESSO FORESTALE DI 'PLANU SANGUNI-PERD'E SALI;22/06/2018;3492;1;937;2;Spese in conto capitale;2;Investimenti fissi lordi e acquisto di terreni;2;Terreni e beni materiali non prodotti;2;Patrimonio naturale non prodotto;3;Foreste;22/06/2018
1053;1;0;762,27;792,76;SEU SIMONE;Z8516B8F8C;SALDO Fatt.n. 01_PA2018  del 05/06/2018 COORDINATORE DELLA SICUREZZA IN FASE DI PROGETTAZIONE ED ESECUZIONE DEGLI INTERVENTI DI MANUTENZIONE ORDINARIA E STRAORDINARIA, RECUPERO, INTEGRAZIONE E VALORIZZAZIONE DEL COMPENDIO FORESTALE DI PLANU;22/06/2018;3492;1;937;2;Spese in conto capitale;2;Investimenti fissi lordi e acquisto di terreni;2;Terreni e beni materiali non prodotti;2;Patrimonio naturale non prodotto;3;Foreste;22/06/2018
1053;2;0;30,49;792,76;SEU SIMONE;Z8516B8F8C;ACCONTO Fatt.n. 01_PA2018  del 05/06/2018 COORDINATORE DELLA SICUREZZA IN FASE DI PROGETTAZIONE ED ESECUZIONE DEGLI INTERVENTI DI MANUTENZIONE ORDINARIA E STRAORDINARIA, RECUPERO, INTEGRAZIONE E VALORIZZAZIONE DEL COMPENDIO FORESTALE DI PLANU;22/06/2018;3492;1;937;2;Spese in conto capitale;2;Investimenti fissi lordi e acquisto di terreni;2;Terreni e beni materiali non prodotti;2;Patrimonio naturale non prodotto;3;Foreste;22/06/2018
1054;1;0;439,2;439,2;ITM TELEMATICA SRL;Z6623BDDC0;SALDO Fatt.n. 332 PA  del 07/06/2018 ORDINE N.4339479 DEL 31/05/18 CIG Z6623BDDC0 BUONO N.25/2018/SS COMUNE DI SANT'ANDREA FRIUS;22/06/2018;118;3;193;1;Spese correnti;3;Acquisto di beni e servizi;2;Acquisto di servizi;5;Utenze e canoni;999;Utenze e canoni per altri servizi n.a.c.;22/06/2018
1055;1;0;8.000,00;8.000,00;ASSOCIAZIONE VOLONTARI PROTEZIONE CIVILE S.A.F.; ;"LIQUIDAZIONEDI SPESA CONTRIBUTO ALL' ASSOCIAZIONE VOLONTARI DELLA PROTEZIONE CIVILE ""S.A.F."" DI SANT'ANDREA FRIUS (CA) - PIANO OPERATIVO 2018/2019 - SERVIZIO PROTEZIONE CIVILE - CAMPAGNA ANTINCENDIO 2018.";28/06/2018;1176;1;264;1;Spese correnti;4;Trasferimenti correnti;4;Trasferimenti correnti a Istituzioni Sociali Private;1;Trasferimenti correnti a Istituzioni Sociali Private;1;Trasferimenti correnti a Istituzioni Sociali Private;28/06/2018
1056;1;0;3.044,75;3.044,75;AUTORITA' D'AMBITO AMBITO TERRITOR.OTTIMALE SARDEGNA; ;Liquidazione di spesa quota fondo consortile Autorita d'Ambito  Ambito Territoriale Ottimale della Sardegna triennio 2016-2018.;28/06/2018;48;1;379;1;Spese correnti;4;Trasferimenti correnti;3;Trasferimenti correnti a Imprese;2;Trasferimenti correnti a altre imprese partecipate;1;Trasferimenti correnti a altre imprese partecipate;28/06/2018
1059;1;0;22,88;65,78;ENEL ENERGIA SPA;7429682F87;SALDO Fatt.n. 004810877962  del 24/05/2018;28/06/2018;1090;1;393;1;Spese correnti;3;Acquisto di beni e servizi;2;Acquisto di servizi;5;Utenze e canoni;4;Energia elettrica;28/06/2018
1059;2;0;42,9;65,78;ENEL ENERGIA SPA;7429682F87;SALDO Fatt.n. 004810877983  del 24/05/2018;28/06/2018;1090;1;393;1;Spese correnti;3;Acquisto di beni e servizi;2;Acquisto di servizi;5;Utenze e canoni;4;Energia elettrica;28/06/2018
1060;1;0;43,43;43,43;ENEL ENERGIA SPA;7429682F87;SALDO Fatt.n. 004810877958  del 24/05/2018;28/06/2018;1302;2;394;1;Spese correnti;3;Acquisto di beni e servizi;2;Acquisto di servizi;5;Utenze e canoni;4;Energia elettrica;28/06/2018
1061;1;0;117,91;117,91;ENEL ENERGIA SPA;7429682F87;SALDO Fatt.n. 004810877970  del 24/05/2018;28/06/2018;1340;4;403;1;Spese correnti;3;Acquisto di beni e servizi;2;Acquisto di servizi;5;Utenze e canoni;4;Energia elettrica;28/06/2018
1062;1;0;22,73;22,73;ENEL ENERGIA SPA;7429682F87;SALDO Fatt.n. 004810877976  del 24/05/2018;28/06/2018;1486;1;404;1;Spese correnti;3;Acquisto di beni e servizi;2;Acquisto di servizi;5;Utenze e canoni;4;Energia elettrica;28/06/2018
1063;1;0;2.170,72;2.170,72;ASARP CASAMATTA ONLUS;ZD0237464E;SALDO Fatt.n. FATTPA 14_18  del 14/06/2018 CIG ZD0237464E IMP. N. 19 DEL 25/01/2018 MAGGIO 2018 INSERIMENTO STRUTTURA COMUNITA' INTEGRATA UTENTE M.F.;28/06/2018;1418;1;178;1;Spese correnti;3;Acquisto di beni e servizi;2;Acquisto di servizi;99;Altri servizi;999;Altri servizi diversi n.a.c.;28/06/2018
1065;1;0;2.080,72;2.080,72;ASARP CASAMATTA ONLUS;ZD0237464E;SALDO Fatt.n. FATTPA 12_18  del 18/05/2018 CIG ZD0237464E IMP. N. 19 DEL 25/01/2018 APRILE 2018 INSERIMENTO STRUTTURA COMUNITA' INTEGRATA UTENTE M.F.;28/06/2018;1418;1;178;1;Spese correnti;3;Acquisto di beni e servizi;2;Acquisto di servizi;99;Altri servizi;999;Altri servizi diversi n.a.c.;28/06/2018
